Workbook

Sheet Help
A1: Help! Nate's English/Persian Flash Cards on a Spreadsheet
I4: Return_To_Drill
A5: Start-up: | I5: Return_To_Drill
B6: Open the Persian Flash.xls spreadsheet in Excel.
B7: Click on the "Start" button to initiate scoring after loading the spreadsheet.
B8: Enable Macros, if your computer requests.
B9: Click on the tab Drill (if it doesn't open on that tab).
B10: Change the "Zoom" percentage on the Excel standard toolbar such that the red borders show.
B11: Install a Persian keyboard to input Persian characters. (Check Google for instructions.)
B12: Turn off cursor movement after an entry and autocomplete:
C13: 1) Click on Excel
C14: 2) Click on Preferences
C15: 3) Click on Edit
C16: 4) Uncheck the box for: Move selection after RETURN
C17: 5) Uncheck the bos for: Autocomplete for cell values
A34: Use: | I34: Return_To_Drill
B35: 1) Click on the "New Try..." button, or Hold down control and type x (Ctrl-x)
C36: A random selection is made from the range of your chosen vocabulary list.
B37: 2) Type in your answer
C38: The cursor will be in cell C7.
C39: When you hit return, your answer is evaluated as either: "Cool!" or "Bad News!"
C40: (or the equivalent)
C41: Case is not evaluated. Spaces and punctuation are compared.
C42: Try again: The answer appears after you have typed at least one letter and hit the return.
E43: You may also hit the "Show Answer" button to see the answer.
E44: You may practice the correct answer any number of times.
B45: 3) Get a new word/phrase
C46: Click on the "New Try" button or do a control-x again!
A61: Change the answer from Persian to English and back: | I61: Return_To_Drill
B62: 1) Click on the "Change, List, Target, or Range" button
B63: 2) Click on the target button for the target (Persian or English) you would like to guess.
A85: Symbol Codes: | I85: Return_To_Drill
B86: (Not used with this language.)
A117: Compliments & Insults | I117: Return_To_Drill
B118: Changing a compliment or an insult:
E119: Stay on the Drill tab.
D120: 1) Turn off protection. (Click on: Tools, Protection, Unprotect Sheet, and type in password.)
D121: 2) Find the compliment in column B or the insult in column C starting in row 60 of the Drill tab.
D122: 3) Retype the cell.
D123: 4) Turn on protection. (Click on: Tools, Protection, Protect Sheet, and type password twice.)
E124: (On the pulldown you should make sure to keep "Select locked cells" and "Select
F125: unlocked cells" checked.)
B127: Adding a compliment or an insult:
E128: Stay on the Drill tab.
D129: 1) Turn off protection. (See above.)
D130: 2) Copy the last number next to the last compliment/insult pairs in the A column.
D131: 3) Paste the number into the next cell down in column A.
D132: 4) In column B of that new row, type in the compliment and in column C, the insult.
E133: (Compliments and insults must be put in pairs.)
D134: 5) Extend the named area, GoodBad, to cover the new pairs.
E135: A) Selct the current area by clicking on F5.
E136: B) Extend the area by holding down on the shift key and clicking on the C column
F137: of the new last row.
E138: C) Delete the old area by clicking Insert, Name, Define, (scroll down to) BadGood,
F139: Delete, OK.
E140: D) Add the new area (still highlighted) by clicking, Insert, Name, Define.
F141: Then type in BadGood.
F142: Then click on Add, OK.
D143: 6) Change cell C58 to the new number of lines (the last number for a line in column A).
D144: 7) Turn on protection.
A150: Change vocabulary set (the list or the tab) or range: | I150: Return_To_Drill
B151: 1) Click on the "Change List, Target, or Range" button
B152: 2) Click on your choice of a vocabulary set button (like "Set C")
B153: 3) Choose a range of the vocabulary--a subset of the words on that tab
C154: Leave these cells blank (E7 and E8) under Enter Range Below: (blank = all)
D155: to use all words on the tab.
C156: Type in a range to get a limited drill selection
D157: (Start at: 100 End at: 120 picks only from words 100 to 120).
B158: 4) Click on the "Return to Drill" button to continue
A175: Adding words: | I175: Return_To_Drill
B176: Chose vocabulary
C177: ="Chose one of the five vocabulary tabs: "&Drill!G19&", "&Drill!G20&", "&Drill!G21&", "&Drill!G22&", "&Drill!G23&"." -> Chose one of the five vocabulary tabs: Vocabulary, Phrases, Set A, Set B, Set C.
B178: Find last words and add at end
C179: Do not overtype columns A, F, G, or H.
D180: ="Type "&Drill!M3&" into column B and "&Drill!M4&" into column C." -> Type Persian into column B and English into column C.
C181: Additions must go immediately after the last filled-in rows.
D182: The program does not look past the first blank it comes to!!!
C183: For accented characters not on your keyboard, type in the symbol code,
D184: and finish typing the cell.
D185: Then hold down on Ctrl and type a z (Ctrl-z).
D186: The symbol codes are replaced by the accented Persian characters in the
E187: highlighted cell.
C188: The program is initialized for up to 3,000 translations per tab (15,000 total).
C189: ="Add hints and comments ("&Drill!M3&" hints in column D; "&Drill!M4&" hints in column E)." -> Add hints and comments (Persian hints in column D; English hints in column E).
D190: Pin down ambiguous possibilities. Add parts of speech or any other information.
C191: You may remove a translation by overtyping it with a new definition.
C192: You may also copy and paste over a group of rows from columns B to E.
D193: Do not use the row Delete or Cut commands
E194: unless you know how to fix columns A and F, G and H!
B211: To correct words | I211: Return_To_Drill
C212: Find the row number of the incorrect definition listed below your entry.
C213: Click on the tab for the current set of vocabulary words.
C214: Go down to the problem row as listed in column A (not the spreadsheet row numbers).
C215: Overtype the offending cell.
A235: Adding new vocabularies: | I235: Return_To_Drill
B236: You may remove the translations or any unwanted vocabularies
D237: by clearing the contents of the vocabulary area.
C238: Select the vocabulary tab that you wish to renew.
C239: Click on the first definition cell (B7).
C240: Hold down on shift and click on the last definition cell at column E
D241: (or go to the end cell (E3000), using the side scrolls to get there.
D242: This should highlight the entire filled vocabulary area.
E243: With the cursor over the last cell, right click to get a menu and
F244: click on Clear Contents.
B245: You may now start at Row 7 entering new words and meanings.
A270: Scoring: | I270: Return_To_Drill
B271: Every time you hit Ctrl-x or the "New Try.." button to get a new word or phrase,
C272: Challenges increases by one.
B273: In order to increase your successes score, you must get the answer right on the last try.
B274: Your challenges, successes and score are saved when you save.
B275: The "Reset Score" button sets challenges, successes and score to zero.
B276: The "Scoring On/Off" button allows you to turn on or off the scoring.
C277: When scoring is turned off, an automatic "Reset Score" is done.
A300: Weights: | I300: Return_To_Drill
B301: Frequency weighting increments are set using the up/down toggle. Use this toggle when
C302: you are confident that you have learned a word or phrase or when you want to see
C303: the word or phrase more often.
D304: Increasing the Frequency Weight increases the probability of the word appearing.
D305: Decreasing it all the way to -100% prevents the word from appearing at all.
D306: The weights are stored in column G of the vocabulary lists.
D307: (The only way to remove a -100% is to manually change column G.)
A332: Protection | I332: Return_To_Drill
D333: 1) To turn off protection.
F334: Click on:
G335: Tools
G336: Protection
G337: Unprotect Sheet
G338: [Type password] (The initial password is | L338: nate | N338: -- store yours here too!)
D339: 2) To turn on protection.
F340: Click on:
G341: Tools
G342: Protection
G343: Protect Sheet
G344: [Type your password, twice]
E345: (On the pulldown you should make sure to keep "Select locked cells" and "Select
F346: unlocked cells" checked.)
A365: For the teacher: | I365: Return_To_Drill
B366: You may create your own vocabulary tabs
D367: and have students cut and paste these over the ones that come with the product.
B368: Most students these days have home computers with Microsoft Excel © and e-mail.
C369: A copy of a new vocabulary could be attached to an e-mail and sent to them.
B370: The vocabulary tab may be sent as a separate spreadsheet.
C371: After saving the attachment, the student may open it
D372: and click the very upper left corner (left of A, above 1) to highlight the entire sheet.
D373: Then the student should copy the sheet.
D374: Then the student should open Persian Flash.
D375: Then the student should select the tab that you would like them to replace
J376: (say, Set B).
D377: The student should open this tab and highlight cell A1.
D378: The new sheet may then be pasted directly over the entire tab.
D379: The student should save this new Persian Flash.
A388: Sharing: | I388: Return_To_Drill
B389: If you or your students create a useful vocabulary,
C390: for example, if you have entered in order the words for a particular textbook,
D391: or the obscure words of a novel,
C392: send the vocabulary to me,
C393: and I will post it on the www.dickmeyerconsulting.com website as a free download for others.
A414: Tips: | I414: Return_To_Drill
B415: Limit your range
C416: Set a short range to learn a limited set of words at a time.
C417: You can begin with the range 1 to 20 or 30, for example.
C418: When you are scoring well, move to the next 20 or 30.
C419: Return to earlier sets often to retain your learning.
B420: Easy start up | AA420: nate
C421: You can put an icon on your desktop by finding Persian Flash,
D422: using My Computer (clones only), where you have saved it.
D423: Right click on the Persian Flash icon when you have found it
E424: and click on "Create Shortcut."
E425: Use your mouse to drag the shortcut icon to your desktop.
B426: When to save
C427: Save every time you enter new vocabulary words. Save at the end of a session.
B428: Screen size
C429: Different size monitors show different amounts of the Drill tab.
C430: You should change the %s in the zoom box of the Standard Toolbar
D431: until cell E23 fits into the lower right corner of the screen.
B432: Backing up
C433: After adding vocabulary, always save the spreadsheet on an external drive,
D434: or "thumb drive" (any memory away from the hard disk).
A439: Other languages: | I439: Return_To_Drill
B440: By changing some of the formulas, this spreadsheet can be adapted to other languages
C441: based on the roman alphabet, but having characters not found on American keyboards.
B442: English/Persian, English/Persian, and English vocabulary-builder versions are also available.
C443: If you would like another language,
D444: please send me the characters that I would have to install as translations,
E445: and sample translations.
I449: © Nathan Dickmeyer, 2006

Sheet Drill
B1: Nate's Persian-English Spreadsheet Flashcards | G1: Don't lock | L1: Safe | M1: 0
M3: =U12 -> Persian
M4: =U13 -> English
A5: Need Help? | M5: Character: | O5: ئ | P5: è | Q5: ì | R5: ò | S5: ù | T5: 6 | U5: 7 | V5: 8 | W5: 9 | X5: à | Y5: è | Z5: ì | AA5: ò | AB5: ù | AC5: 6 | AD5: 7 | AE5: 8 | AF5: 9 | AG5: à | AH5: è | AI5: ì | AJ5: ò | AK5: ù | AL5: 6 | AM5: 7 | AN5: 8 | AO5: 9 | AP5: à | AQ5: è | AR5: í | AS5: ò | AT5: ù | AU5: 6 | AV5: 7 | AW5: 8 | AX5: 9
A6: Run cursor | C6: Type answer below: | M6: Code: | O6: 1 | P6: 2 | Q6: 3 | R6: 4 | S6: 5 | T6: 6 | U6: 7 | V6: 8 | W6: 9 | X6: 1 | Y6: 2 | Z6: 3 | AA6: 4 | AB6: 5 | AC6: 6 | AD6: 7 | AE6: 8 | AF6: 9 | AG6: 1 | AH6: 2 | AI6: 3 | AJ6: 4 | AK6: 5 | AL6: 6 | AM6: 7 | AN6: 8 | AO6: 9 | AP6: 1 | AQ6: 2 | AR6: 3 | AS6: 4 | AT6: 5 | AU6: 6 | AV6: ~ | AW6: ~ | AX6: ~
A7: over cell. | B7: Translate this: | D7: Correct answer: | L7: Answer row | M7: Step trans: | N7: =C7 -> 0 | O7: =IF(ISERR(FIND(O6,N7)),N7,LEFT(N7,FIND(O6,N7)-1)&O5&MID(N7,FIND(O6,N7)+1,LEN(N7))) -> 0 | P7: 0 | Q7: 0 | R7: 0 | S7: 0 | T7: 0 | U7: 0 | V7: 0 | W7: 0 | X7: 0 | Y7: 0 | Z7: 0 | AA7: 0 | AB7: 0 | AC7: 0 | AD7: 0 | AE7: 0 | AF7: 0 | AG7: 0 | AH7: 0 | AI7: 0 | AJ7: 0 | AK7: 0 | AL7: 0 | AM7: 0 | AN7: 0 | AO7: 0 | AP7: 0 | AQ7: 0 | AR7: 0 | AS7: 0 | AT7: 0 | AU7: 0 | AV7: =IF(ISERR(FIND(AV6,AU7)),AU7,LEFT(AU7,FIND(AV6,AU7)-1)&AV5&MID(AU7,FIND(AV6,AU7)+1,LEN(AU7))) -> 0 | AW7: =IF(ISERR(FIND(AW6,AV7)),AV7,LEFT(AV7,FIND(AW6,AV7)-1)&AW5&MID(AV7,FIND(AW6,AV7)+1,LEN(AV7))) -> 0 | AX7: =IF(ISERR(FIND(AX6,AW7)),AW7,LEFT(AW7,FIND(AX6,AW7)-1)&AX5&MID(AW7,FIND(AX6,AW7)+1,LEN(AW7))) -> 0
A8: Help Topics: | B8: =VLOOKUP(IF(C29>B34,1,C29),CHOOSE(P18,words,words1,words2,words3,words4),IF(C20=M4,2,3)) -> age | C8: =N8 ->  | D8: =IF(ISBLANK(C7),"",VLOOKUP(IF(C29>B34,1,C29),CHOOSE(P18,words,words1,words2,words3,words4),IF(C20=M4,3,2))) ->  | M8: W/char: | N8: =IF(N7=0,"",IF(AX7=0,"",AX7)) ->  | R8: Vocabulary
A9: Start_up | B9: =IF(ISBLANK(VLOOKUP(C29,CHOOSE(P18,words,words1,words2,words3,words4),IF(C20=M4,4,5))),"",VLOOKUP(C29,CHOOSE(P18,words,words1,words2,words3,words4),IF(C20=M4,4,5))) ->  | C9: =IF(C8=" ----","Ready!",IF(C8="","Ready!",IF(D8=C8," "&B59,C59))) -> Ready! | D9: =IF(ISBLANK(C7),"",IF(ISBLANK(VLOOKUP(C29,CHOOSE(P18,words,words1,words2,words3,words4),IF(C20=M4,5,4))),"",VLOOKUP(C29,CHOOSE(P18,words,words1,words2,words3,words4),IF(C20=M4,5,4)))) ->  | L9: Ctrl-z row | M9: Step trans: | N9: r5fuger | O9: =IF(ISERR(FIND(O6,N9)),N9,LEFT(N9,FIND(O6,N9)-1)&O5&MID(N9,FIND(O6,N9)+1,LEN(N9))) -> r5fuger | P9: =IF(ISERR(FIND(P6,O9)),O9,LEFT(O9,FIND(P6,O9)-1)&P5&MID(O9,FIND(P6,O9)+1,LEN(O9))) -> r5fuger | Q9: r5fuger | R9: r5fuger | S9: rùfuger | T9: rùfuger | U9: rùfuger | V9: rùfuger | W9: rùfuger | X9: rùfuger | Y9: rùfuger | Z9: rùfuger | AA9: rùfuger | AB9: rùfuger | AC9: rùfuger | AD9: rùfuger | AE9: rùfuger | AF9: rùfuger | AG9: rùfuger | AH9: rùfuger | AI9: rùfuger | AJ9: rùfuger | AK9: rùfuger | AL9: rùfuger | AM9: rùfuger | AN9: rùfuger | AO9: rùfuger | AP9: rùfuger | AQ9: rùfuger | AR9: rùfuger | AS9: rùfuger | AT9: rùfuger | AU9: rùfuger | AV9: rùfuger | AW9: rùfuger | AX9: rùfuger
A10: Use | B10: Hint ^ | C10: ="Current word row: "&TEXT(C29,M1) -> Current word row: 2 | D10: Added info ^ . | M10: W/char: | N10: =IF(N9=0,"",IF(AX9=0,"",AX9)) -> rùfuger
A11: Change_List | B11: Challenges | C11: =IF(B12="","",IF(B12=0,"Score: " &0,"Score: "&ROUND(B14*100/B12,2)&"%")) -> Score: 0 | D11: Frequency Weighting Incremement (0% starting point, -100% = never) | G11: =10+INDIRECT("'"&B32&"'!R"&C29+6&"C6",FALSE)*10 -> 10 | L11: = | M11: ; | Q11: = | R11: ; | U11: Target Names
A12: Change_Range | B12: 0 | C12: =B32 -> Vocabulary | D12: =(G12)*0.1-1 -> 0 | G12: 10 | M12: =O5&$L$11&O6&$M$11&P5&$L$11&P6&$M$11&Q5&$L$11&Q6&$M$11&R5&$L$11&R6&$M$11&S5&$L$11&S6 -> ئ = 1; è = 2; ì = 3; ò = 4; ù = 5 | Q12: =T5&$Q$11&T6&$R$11&U5&$Q$11&U6&$R$11&V5&$Q$11&V6&$R$11&W5&$Q$11&W6 -> 6 = 6; 7 = 7; 8 = 8; 9 = 9 | U12: Persian | V12: Col. B heading
A13: Change_Target | B13: First try successes | C13: Scoring is: | D13: © Nathan Dickmeyer, 2023 | U13: English | V13: Col. C heading
A14: Correct | B14: 0 | C14: On | G14: Tries
C15: 0 | G15: 0
A16: Add_Words | G16: ="1=Correct" -> 1=Correct
A17: Score | G17: =IF( C7="", 0,IF(D8=C8,1,0)) -> 0
A18: Weights | B18: ="Current list tab: "&B32 -> Current list tab: Vocabulary | M18: words | N18: 1 | P18: =IF(ISERROR(MATCH(B32,sets,0)),1,MATCH(B32,sets,0)) -> 1
A19: Symbol_Codes | B19: ="Current range from: "&Select!E7 -> Current range from: 0 | C19: Now guessing: | G19: Vocabulary | M19: words1 | N19: 2
A20: Insults | B20: =" to: "&Select!E8&" ("&INDIRECT("'"&B32&"'!R6C2",FALSE)&" max.)" -> to: 25 (1739 max.) | C20: =Select!P8 -> Persian | G20: Phrases | M20: words2 | N20: 3
A21: Protection | B21: This work is licensed under the Creative Commons Attribution 2.5 License. To view a copy of this license, visit: | D21: http://creativecommons.org/licenses/by/2.5/ | G21: Set A | M21: words3 | N21: 4
B22: or send a letter to Creative Commons, 543 Howard Street, 5th Floor, San Francisco, California, 94105, USA | D22: Updated: 5/18/23 | G22: Set B | M22: words4 | N22: 5
G23: Set C | M23: words5 | N23: 6
B28: Random number | C28: =VLOOKUP(RAND(),CHOOSE(P18,probs,Probs1,probs2,probs3,probs4),2)+1 -> 14
B29: =B32 -> Vocabulary | C29: 2
B32: =Select!R8 -> Vocabulary
B33: Tab name, cleaned
B34: =INDIRECT("'"&B32&"'!R6C2",FALSE) -> 1739
B35: Total in current tab
B58: Total number: | C58: 44
B59: =VLOOKUP(INT(RAND()*C58+1),goodBad,2) -> Your Ma Loves You! | C59: =VLOOKUP(INT(RAND()*C58+1),goodBad,3) -> Prehistoric!
A60: 1 | B60: Cool! | C60: Not Smart! | D60: 1
A61: =A60+1 -> 2 | B61: Outstanding! | C61: Dumb! | D61: =D60+1 -> 2
A62: =A61+1 -> 3 | B62: Marvelous! | C62: Incorrect! | D62: =D61+1 -> 3
A63: 4 | B63: Groovy! | C63: Wrong! | D63: 4
A64: 5 | B64: Gnarly! | C64: Wrong! Wrong! | D64: 5
A65: 6 | B65: Brilliant! | C65: Wrong! Wrong! Wrong! | D65: 6
A66: 7 | B66: Bodacious! | C66: Try Again! | D66: 7
A67: 8 | B67: Stupendous! | C67: Whoops! | D67: 8
A68: 9 | B68: Incredible! | C68: You can do better! | D68: 9
A69: 10 | B69: Particularly Fine! | C69: Bad News! | D69: 10
A70: 11 | B70: Nice Job! | C70: Uhhhh... No! | D70: 11
A71: 12 | B71: Good Job! | C71: False! | D71: 12
A72: 13 | B72: Fine Work! | C72: Lies! All Lies! | D72: 13
A73: 14 | B73: You've done it! | C73: Not Good! | D73: 14
A74: 15 | B74: Mastermind! | C74: Not Correct! | D74: 15
A75: 16 | B75: Bent it like Becham! | C75: Not Right! | D75: 16
A76: 17 | B76: Totally! | C76: Next time, ask someone! | D76: 17
A77: 18 | B77: Totally Cool! | C77: Not even close! | D77: 18
A78: 19 | B78: Totally Like Cool! | C78: That stinks! | D78: 19
A79: 20 | B79: Undeniably Brilliant! | C79: Terrible! | D79: 20
A80: 21 | B80: Kick-ass! | C80: Give up! | D80: 21
A81: 22 | B81: You! You! You! | C81: Have mercy! | D81: 22
A82: 23 | B82: Home Run! | C82: Couch potatoe! | D82: 23
A83: 24 | B83: Spectacular! | C83: Not Smart! | D83: 24
A84: 25 | B84: Awesome! | C84: Hopeless! | D84: 25
A85: 26 | B85: Totally Awesome! | C85: Get a Brain! | D85: 26
A86: 27 | B86: Your Ma Loves You! | C86: Listen buddy... | D86: 27
A87: 28 | B87: Sophisticated! | C87: Duuuuhhh! | D87: 28
A88: 29 | B88: Like...Wow! | C88: Dumb! | D88: 29
A89: 30 | B89: Smashing! | C89: Mentally Unfit! | D89: 30
A90: 31 | B90: Killer! | C90: Bad Hands! | D90: 31
A91: 32 | B91: Lucky! | C91: Sick! | D91: 32
A92: 33 | B92: Great! | C92: Lacking Intelligence! | D92: 33
A93: 34 | B93: Excellent! | C93: Slipping! | D93: 34
A94: 35 | B94: Unbelievable! | C94: Tripped up! | D94: 35
A95: 36 | B95: Wicked! | C95: Bummer! | D95: 36
A96: 37 | B96: Awsome Wicked! | C96: Prehistoric! | D96: 37
A97: 38 | B97: Like Tough Wicked! | C97: Adults Only, Please! | D97: 38
A98: 39 | B98: Monster! | C98: Not you again!!! | D98: 39
A99: 40 | B99: Smokin'! | C99: Awful! Awful! Awful! | D99: 40
A100: 41 | B100: You Is Bad! | C100: Too bad! | D100: 41
A101: 42 | B101: Over The Top! | C101: So Sorry! | D101: 42
A102: 43 | B102: Wonderful! | C102: Yech! | D102: 43
A103: 44 | B103: Bangin'! | C103: You trippin'? | D103: 44

Sheet Select
D1: RESET TARGET, RANGE OR RESET WORD/PHRASE SET
D5: Enter range below | P5: =Drill!M3 -> Persian
D7: Start at: | E7: 0 | G7: Current active tab | P7: =Drill!M4 -> English
D8: End at: | E8: 25 | G8: =Drill!B32 -> Vocabulary | O8: Active= | P8: Persian | R8: Vocabulary
E9: ="Total is now: "&INDIRECT("'"&Drill!B32&"'!R6C2",FALSE) -> Total is now: 1739
C10: Click on tab name below for word or phrase set desired.
F11: Total in set | I11: TARGET
E12: =Drill!G19 -> Vocabulary | F12: =Vocabulary!B6 -> 1739 | I12: =" Guess "&Drill!M3&" or "&Drill!M4&"?" -> Guess Persian or English?
E13: =Drill!G20 -> Phrases | F13: =Travel!B6 -> 1602 | I13: =P5 -> Persian
E14: =Drill!G21 -> Set A | F14: ='Set A'!B6 -> 10 | I14: =P7 -> English
E15: =Drill!G22 -> Set B | F15: ='Set B'!B6 -> 10 | I15: ="Current = "&P8 -> Current = Persian
E16: =Drill!G23 -> Set C | F16: ='Set C'!B6 -> 385
C19: ="Reset all (tab: "&Drill!B32&")" -> Reset all (tab: Vocabulary)
C20: Frequency Weighting Incremements
C21: To equal weights (0%)

Sheet Vocabulary
A4: 2999 | H4: Range Sum
A5: =IF(ISNUMBER(Select!E7),IF(Select!E7>1,IF(Select!E7>A4,1,IF(Select!E8<=Select!E7,1,Select!E7)),1),1) -> 1 | B5: =Drill!M3 -> Persian | C5: =Drill!M4 -> English | D5: =Drill!M3&" Hints" -> Persian Hints | E5: =Drill!M4&" Hints" -> English Hints | F5: Delta | G5: Range Cum. | H5: =SUM(OFFSET(Adjusts,A5-1,0,A6-A5+1,1))+A6-A5+1 -> 25 | M5: =Drill!M5 -> Character: | N5: =Drill!N5 -> 0 | O5: =Drill!O5 -> ئ | P5: =Drill!P5 -> è | Q5: =Drill!Q5 -> ì | R5: =Drill!R5 -> ò | S5: =Drill!S5 -> ù | T5: =Drill!T5 -> 6 | U5: =Drill!U5 -> 7 | V5: =Drill!V5 -> 8 | W5: =Drill!W5 -> 9 | X5: =Drill!X5 -> à | Y5: =Drill!Y5 -> è | Z5: =Drill!Z5 -> ì | AA5: =Drill!AA5 -> ò | AB5: =Drill!AB5 -> ù | AC5: =Drill!AC5 -> 6 | AD5: =Drill!AD5 -> 7 | AE5: =Drill!AE5 -> 8 | AF5: =Drill!AF5 -> 9 | AG5: =Drill!AG5 -> à | AH5: =Drill!AH5 -> è | AI5: =Drill!AI5 -> ì | AJ5: =Drill!AJ5 -> ò | AK5: =Drill!AK5 -> ù | AL5: =Drill!AL5 -> 6 | AM5: =Drill!AM5 -> 7 | AN5: =Drill!AN5 -> 8 | AO5: =Drill!AO5 -> 9 | AP5: =Drill!AP5 -> à | AQ5: =Drill!AQ5 -> è | AR5: =Drill!AR5 -> í | AS5: =Drill!AS5 -> ò | AT5: =Drill!AT5 -> ù | AU5: =Drill!AU5 -> 6 | AV5: =Drill!AV5 -> 7 | AW5: =Drill!AW5 -> 8 | AX5: =Drill!AX5 -> 9
A6: =IF(ISNUMBER(Select!E8),IF(Select!E8>A4,B6,IF(Select!E8<=A5,B6,IF(Select!E8>B6,B6,Select!E8))),B6) -> 25 | B6: =A4-COUNTBLANK(B7:B3005) -> 1739 | F6: Add to 100% | G6: 0 | H6: 0 | M6: =Drill!M6 -> Code: | N6: =Drill!N6 -> 0 | O6: =Drill!O6 -> 1 | P6: =Drill!P6 -> 2 | Q6: =Drill!Q6 -> 3 | R6: =Drill!R6 -> 4 | S6: =Drill!S6 -> 5 | T6: =Drill!T6 -> 6 | U6: =Drill!U6 -> 7 | V6: =Drill!V6 -> 8 | W6: =Drill!W6 -> 9 | X6: =Drill!X6 -> 1 | Y6: =Drill!Y6 -> 2 | Z6: =Drill!Z6 -> 3 | AA6: =Drill!AA6 -> 4 | AB6: =Drill!AB6 -> 5 | AC6: =Drill!AC6 -> 6 | AD6: =Drill!AD6 -> 7 | AE6: =Drill!AE6 -> 8 | AF6: =Drill!AF6 -> 9 | AG6: =Drill!AG6 -> 1 | AH6: =Drill!AH6 -> 2 | AI6: =Drill!AI6 -> 3 | AJ6: =Drill!AJ6 -> 4 | AK6: =Drill!AK6 -> 5 | AL6: =Drill!AL6 -> 6 | AM6: =Drill!AM6 -> 7 | AN6: =Drill!AN6 -> 8 | AO6: =Drill!AO6 -> 9 | AP6: =Drill!AP6 -> 1 | AQ6: =Drill!AQ6 -> 2 | AR6: =Drill!AR6 -> 3 | AS6: =Drill!AS6 -> 4 | AT6: =Drill!AT6 -> 5 | AU6: =Drill!AU6 -> 6 | AV6: =Drill!AV6 -> ~ | AW6: =Drill!AW6 -> ~ | AX6: =Drill!AX6 -> ~
A7: =1 -> 1 | B7: بنا | C7: a builder | F7: 0 | G7: =IF(OR($A$5>A7,A7>$A$6),0,(F7+1)/$H$5+G6) -> 0.04 | H7: =A7 -> 1
A8: =1+A7 -> 2 | B8: سن | C8: age | F8: 0 | G8: =IF(OR($A$5>A8,A8>$A$6),0,(F8+1)/$H$5+G7) -> 0.08 | H8: =A8 -> 2
A9: =1+A8 -> 3 | B9: بس | C9: enough | F9: 0 | G9: =IF(OR($A$5>A9,A9>$A$6),0,(F9+1)/$H$5+G8) -> 0.12 | H9: 3 | M9: =Drill!M9 -> Step trans: | N9: pan2 | O9: =IF(ISERR(FIND(O6,N9)),N9,LEFT(N9,FIND(O6,N9)-1)&O5&MID(N9,FIND(O6,N9)+1,LEN(N9))) -> pan2 | P9: =IF(ISERR(FIND(P6,O9)),O9,LEFT(O9,FIND(P6,O9)-1)&P5&MID(O9,FIND(P6,O9)+1,LEN(O9))) -> panè | Q9: panè | R9: panè | S9: panè | T9: panè | U9: panè | V9: panè | W9: panè | X9: panè | Y9: panè | Z9: panè | AA9: panè | AB9: panè | AC9: panè | AD9: panè | AE9: panè | AF9: panè | AG9: panè | AH9: panè | AI9: panè | AJ9: panè | AK9: panè | AL9: panè | AM9: panè | AN9: panè | AO9: panè | AP9: panè | AQ9: panè | AR9: panè | AS9: panè | AT9: panè | AU9: panè | AV9: panè | AW9: panè | AX9: panè
A10: 4 | B10: دم | C10: tail | F10: 0 | G10: =IF($A$5>A10,0,IF(A10>$A$6,1,(F10+1)/$H$5+G9)) -> 0.16 | H10: 4 | M10: =Drill!M10 -> W/char: | N10: =IF(N9=0,"",IF(AX9=0,"",AX9)) -> panè
A11: 5 | B11: تا | C11: as far as, until | F11: 0 | G11: =IF($A$5>A11,0,IF(A11>$A$6,1,(F11+1)/$H$5+G10)) -> 0.2 | H11: 5
A12: 6 | B12: زر | C12: gold | F12: 0 | G12: 0.24 | H12: 6
A13: 7 | B13: هر چیز | C13: everything | F13: 0 | G13: 0.28 | H13: 7
A14: 8 | B14: شیشه | C14: glass | F14: 0 | G14: 0.32 | H14: 8
A15: 9 | B15: پیچ | C15: screw | F15: 0 | G15: 0.36 | H15: 9
A16: 10 | B16: پس | C16: then | F16: 0 | G16: 0.4 | H16: 10
A17: 11 | B17: چه چیز | C17: what? | F17: 0 | G17: 0.44 | H17: 11
A18: 12 | B18: پشم | C18: wool | F18: 0 | G18: 0.48 | H18: 12
A19: 13 | B19: گاه | C19: place | E19: suffix (also time) | F19: 0 | G19: 0.52 | H19: 13
A20: 14 | B20: کل | C20: chief, supreme | F20: 0 | G20: 0.56 | H20: 14
A21: 15 | B21: کلاس | C21: class | F21: 0 | G21: 0.6 | H21: 15
A22: 16 | B22: گلابی | C22: pear | F22: 0 | G22: 0.64 | H22: 16
A23: 17 | B23: کسی | C23: somebody | F23: 0 | G23: 0.68 | H23: 17
A24: 18 | B24: کره | C24: butter | F24: 0 | G24: 0.72 | H24: 18
A25: 19 | B25: گچ | C25: plaster | F25: 0 | G25: 0.76 | H25: 19
A26: 20 | B26: هر گز | C26: never | F26: 0 | G26: 0.8 | H26: 20
A27: 21 | B27: خواهش | C27: a request | F27: 0 | G27: 0.84 | H27: 21
A28: 22 | B28: فردا | C28: tomorrow | F28: 0 | G28: 0.88 | H28: 22
A29: 23 | B29: بعد | C29: afterwards | F29: 0 | G29: 0.92 | H29: 23
A30: 24 | B30: معنی | C30: meaning | F30: 0 | G30: 0.96 | H30: 24
A31: 25 | B31: عید | C31: holiday | F31: 0 | G31: 1 | H31: 25
A32: 26 | B32: جمع | C32: total, sum | F32: 0 | G32: 1 | H32: 26
A33: 27 | B33: جا | C33: place | F33: 0 | G33: 1 | H33: 27
A34: 28 | B34: قبل از | C34: before | F34: 0 | G34: 1 | H34: 28
A35: 29 | B35: غیر از | C35: other than | F35: 0 | G35: 1 | H35: 29
A36: 30 | B36: تغییر | C36: change | F36: 0 | G36: 1 | H36: 30
A37: 31 | B37: باغ | C37: garden | F37: 0 | G37: 1 | H37: 31
A38: 32 | B38: بقیه | C38: remainder, rest | F38: 0 | G38: 1 | H38: 32
A39: 33 | B39: نفر | C39: people | E39: after numbers | F39: 0 | G39: 1 | H39: 33
A40: 34 | B40: کاغذ | C40: paper | F40: 0 | G40: 1 | H40: 34
A41: 35 | B41: بعضی | C41: some | F41: 0 | G41: 1 | H41: 35
A42: 36 | B42: ظهر | C42: noon | F42: 0 | G42: 1 | H42: 36
A43: 37 | B43: نصف | C43: half | F43: 0 | G43: 1 | H43: 37
A44: 38 | B44: باعث | C44: cause, reason | F44: 0 | G44: 1 | H44: 38
A45: 39 | B45: کثیف | C45: dirty | F45: 0 | G45: 1 | H45: 39
A46: 40 | B46: طرف | C46: direction | F46: 0 | G46: 1 | H46: 40
A47: 41 | B47: باطری | C47: battery | F47: 0 | G47: 1 | H47: 41
A48: 42 | B48: صبح | C48: morning | F48: 0 | G48: 1 | H48: 42
A49: 43 | B49: حرف | C49: letter | E49: of the alphabet | F49: 0 | G49: 1 | H49: 43
A50: 44 | B50: آباژور | C50: lampshade | F50: 0 | G50: 1 | H50: 44
A51: 45 | B51: آژانس | C51: agency | F51: 0 | G51: 1 | H51: 45
A52: 46 | B52: اتوبوس | C52: bus | F52: 0 | G52: 1 | H52: 46
A53: 47 | B53: دفتر | C53: office | F53: 0 | G53: 1 | H53: 47
A54: 48 | B54: حمام | C54: bath | F54: 0 | G54: 1 | H54: 48
A55: 49 | B55: باین سبب | C55: for this reason | F55: 0 | G55: 1 | H55: 49
A56: 50 | B56: سبب | C56: reason | F56: 0 | G56: 1 | H56: 50
A57: 51 | B57: قهوه | C57: coffee | F57: 0 | G57: 1 | H57: 51
A58: 52 | B58: هیچ جا | C58: nowhere | F58: 0 | G58: 1 | H58: 52
A59: 53 | B59: هیچ وقت | C59: never | E59: no time | F59: 0 | G59: 1 | H59: 53
A60: 54 | B60: هیچ کس | C60: nobody | F60: 0 | G60: 1 | H60: 54
A61: 55 | B61: هیچ کدام | C61: none | E61: (of them) | F61: 0 | G61: 1 | H61: 55
A62: 56 | B62: برادر | C62: brother | F62: 0 | G62: 1 | H62: 56
A63: 57 | B63: دختر | C63: daughter | F63: 0 | G63: 1 | H63: 57
A64: 58 | B64: خواهر | C64: sister | F64: 0 | G64: 1 | H64: 58
A65: 59 | B65: فرهنگ | C65: vocabulary | F65: 0 | G65: 1 | H65: 59
A66: 60 | B66: حالا | C66: now | F66: 0 | G66: 1 | H66: 60
A67: 61 | B67: ان وقت | C67: then | F67: 0 | G67: 1 | H67: 61
A68: 62 | B68: هر وقت | C68: every time, whenever, always | F68: 0 | G68: 1 | H68: 62
A69: 63 | B69: این وقت | C69: this time | F69: 0 | G69: 1 | H69: 63
A70: 64 | B70: این شخص | C70: this person | F70: 0 | G70: 1 | H70: 64
A71: 65 | B71: هر کس | C71: everybody | F71: 0 | G71: 1 | H71: 65
A72: 66 | B72: هر جا | C72: everywhere | F72: 0 | G72: 1 | H72: =A72 -> 66
A73: =1+A72 -> 67 | B73: هیچ جا | C73: nowhere | F73: 0 | G73: 1 | H73: 67
A74: 68 | B74: آن یکی | C74: that one | F74: 0 | G74: 1 | H74: 68
A75: 69 | B75: هیچکی | C75: nobody | F75: 0 | G75: =IF($A$5>A75,0,IF(A75>$A$6,1,(F75+1)/$H$5+G74)) -> 1 | H75: 69
A76: 70 | B76: ماشین | C76: car | F76: 0 | G76: 1 | H76: 70
A77: 71 | B77: تاکسی | C77: taxi | F77: 0 | G77: 1 | H77: 71
A78: 72 | B78: هر یکی | C78: each one | F78: 0 | G78: 1 | H78: 72
A79: 73 | B79: چای | C79: tea | F79: 0 | G79: 1 | H79: 73
A80: 74 | B80: بنده | C80: slave | F80: 0 | G80: 1 | H80: 74
A81: 75 | B81: منزل | C81: house | F81: 0 | G81: 1 | H81: 75
A82: 76 | B82: پرنده | C82: bird | F82: 0 | G82: 1 | H82: 76
A83: 77 | B83: کشیدن | C83: to pull | F83: 0 | G83: 1 | H83: 77
A84: 78 | B84: قلم | C84: pen | F84: 0 | G84: 1 | H84: 78
A85: 79 | B85: درخت | C85: tree | F85: 0 | G85: 1 | H85: 79
A86: 80 | B86: خط | C86: line, writing | F86: 0 | G86: 1 | H86: 80
A87: 81 | B87: برگ | C87: leaf | F87: 0 | G87: 1 | H87: 81
A88: 82 | B88: نامه | C88: letter | F88: 0 | G88: 1 | H88: 82
A89: 83 | B89: سفیر | C89: ambassador | F89: 0 | G89: 1 | H89: 83
A90: 84 | B90: سفارت | C90: embassy | F90: 0 | G90: 1 | H90: 84
A91: 85 | B91: وزیر | C91: minister | F91: 0 | G91: 1 | H91: 85
A92: 86 | B92: وزارت داد گستری | C92: Ministry of Justice | F92: 0 | G92: 1 | H92: 86
A93: 87 | B93: میدان | C93: square | F93: 0 | G93: 1 | H93: 87
A94: 88 | B94: کوچه | C94: lane | F94: 0 | G94: 1 | H94: 88
A95: 89 | B95: قشنگ | C95: beautiful | F95: 0 | G95: 1 | H95: 89
A96: 90 | B96: کاشی | C96: tile | F96: 0 | G96: 1 | H96: 90
A97: 91 | B97: کاشیکاری | C97: mosaic | F97: 0 | G97: 1 | H97: 91
A98: 92 | B98: راندن | C98: to drive | F98: 0 | G98: 1 | H98: 92
A99: 93 | B99: مختلف | C99: various | F99: 0 | G99: 1 | H99: 93
A100: 94 | B100: گذشتن | C100: to pass | E100: (by) | F100: 0 | G100: 1 | H100: 94
A101: 95 | B101: ایستادن | C101: to stop | F101: 0 | G101: 1 | H101: 95
A102: 96 | B102: شوفر | C102: driver | F102: 0 | G102: 1 | H102: 96
A103: 97 | B103: کشور | C103: country | F103: 0 | G103: 1 | H103: 97
A104: 98 | B104: گوشه | C104: corner | F104: 0 | G104: 1 | H104: 98
A105: 99 | B105: همچنین | C105: as well | F105: 0 | G105: 1 | H105: 99
A106: 100 | B106: زبان | C106: tongue, language | F106: 0 | G106: 1 | H106: 100
A107: 101 | B107: پادشاه | C107: king | F107: 0 | G107: 1 | H107: 101
A108: 102 | B108: ملكه | C108: queen | F108: 0 | G108: 1 | H108: 102
A109: 103 | B109: دربار | C109: court | F109: 0 | G109: 1 | H109: 103
A110: 104 | B110: وزارت | C110: Ministry | F110: 0 | G110: 1 | H110: 104
A111: 105 | B111: مسجد | C111: mosque | F111: 0 | G111: 1 | H111: 105
A112: 106 | B112: خیابان | C112: street | F112: 0 | G112: 1 | H112: 106
A113: 107 | B113: داد گستری | C113: justice | F113: 0 | G113: 1 | H113: 107
A114: 108 | B114: اسم | C114: name | F114: 0 | G114: 1 | H114: 108
A115: 109 | B115: عمارت | C115: building | F115: 0 | G115: 1 | H115: 109
A116: 110 | B116: رنگ | C116: color | F116: 0 | G116: 1 | H116: 110
A117: 111 | B117: سبز | C117: green | F117: 0 | G117: 1 | H117: 111
A118: 112 | B118: بانک | C118: bank | F118: 0 | G118: 1 | H118: 112
A119: 113 | B119: آبی | C119: blue | F119: 0 | G119: 1 | H119: 113
A120: 114 | B120: زرد | C120: yellow/golden | F120: 0 | G120: 1 | H120: 114
A121: 115 | B121: هنوز...نه | C121: not yet | F121: 0 | G121: 1 | H121: 115
A122: 116 | B122: آسان | C122: easy | F122: 0 | G122: 1 | H122: 116
A123: 117 | B123: میوه | C123: fruit | F123: 0 | G123: 1 | H123: 117
A124: 118 | B124: ده | C124: village | F124: 0 | G124: 1 | H124: 118
A125: 119 | B125: قابل توجه | C125: interesting | E125: literally noteworthy | F125: 0 | G125: 1 | H125: 119
A126: 120 | B126: درس | C126: lesson | F126: 0 | G126: 1 | H126: 120
A127: 121 | B127: قابل | C127: worthy | E127: (of) | F127: 0 | G127: 1 | H127: 121
A128: 122 | B128: رییس | C128: director | F128: 0 | G128: 1 | H128: 122
A129: 123 | B129: روشن | C129: bright | F129: 0 | G129: 1 | H129: 123
A130: 124 | B130: نقاش | C130: painter | F130: 0 | G130: 1 | H130: 124
A131: 125 | B131: بازار | C131: bazar | F131: 0 | G131: 1 | H131: 125
A132: 126 | B132: گیلاس | C132: cherry | F132: 0 | G132: 1 | H132: 126
A133: 127 | B133: آتش | C133: fire | F133: 0 | G133: 1 | H133: 127
A134: 128 | B134: آموزگار | C134: teacher | D134: ah… | F134: 0 | G134: 1 | H134: 128
A135: 129 | B135: پایتخت | C135: capital city | F135: 0 | G135: 1 | H135: 129
A136: 130 | B136: ملی | C136: national | F136: 0 | G136: 1 | H136: =A136 -> 130
A137: =1+A136 -> 131 | B137: چراغ | C137: lamp, light | F137: 0 | G137: 1 | H137: 131
A138: 132 | B138: نقاشی | C138: painting | F138: 0 | G138: 1 | H138: 132
A139: 133 | B139: فرهنگ | C139: education, vocabulary, dictionary | F139: 0 | G139: =IF($A$5>A139,0,IF(A139>$A$6,1,(F139+1)/$H$5+G138)) -> 1 | H139: 133
A140: 134 | B140: اصفهان | C140: Esfahan | F140: 0 | G140: 1 | H140: 134
A141: 135 | B141: خواندن | C141: to read | F141: 0 | G141: 1 | H141: 135
A142: 136 | B142: می خوانم | C142: I read | F142: 0 | G142: 1 | H142: 136
A143: 137 | B143: کشیدن | C143: to pull | F143: 0 | G143: 1 | H143: 137
A144: 138 | B144: می کشم | C144: I pull | F144: 0 | G144: 1 | H144: 138
A145: 139 | B145: بافتن | C145: to weave | F145: 0 | G145: 1 | H145: 139
A146: 140 | B146: می بافم | C146: I weave | F146: 0 | G146: 1 | H146: 140
A147: 141 | B147: نوشتن | C147: to write | F147: 0 | G147: 1 | H147: 141
A148: 142 | B148: می نویسم | C148: I write | F148: 0 | G148: 1 | H148: 142
A149: 143 | B149: گذشتن | C149: to pass by | F149: 0 | G149: 1 | H149: 143
A150: 144 | B150: می گذرم | C150: I pass by | F150: 0 | G150: 1 | H150: 144
A151: 145 | B151: امروز | C151: today | F151: 0 | G151: 1 | H151: 145
A152: 146 | B152: دیشب | C152: last night | F152: 0 | G152: 1 | H152: 146
A153: 147 | B153: منزل | C153: at home | F153: 0 | G153: 1 | H153: 147
A154: 148 | B154: امشب | C154: tonight | F154: 0 | G154: 1 | H154: 148
A155: 149 | B155: وقت | C155: time | F155: 0 | G155: 1 | H155: 149
A156: 150 | B156: کار | C156: work | F156: 0 | G156: 1 | H156: 150
A157: 151 | B157: رستوران | C157: restaurant | F157: 0 | G157: 1 | H157: 151
A158: 152 | B158: پنجره | C158: window | F158: 0 | G158: 1 | H158: 152
A159: 153 | B159: اطاق | C159: room | F159: 0 | G159: 1 | H159: 153
A160: 154 | B160: گاراژ | C160: garage | F160: 0 | G160: 1 | H160: 154
A161: 155 | B161: نوکر | C161: servant | F161: 0 | G161: 1 | H161: 155
A162: 156 | B162: خسته | C162: tired | F162: 0 | G162: 1 | H162: 156
A163: 157 | B163: جز | C163: instead of, except | F163: 0 | G163: 1 | H163: 157
A164: 158 | B164: طرف | C164: towards | F164: 0 | G164: 1 | H164: 158
A165: 159 | B165: داخل | C165: inside | F165: 0 | G165: 1 | H165: 159
A166: 160 | B166: بیرون | C166: outside | F166: 0 | G166: 1 | H166: 160
A167: 161 | B167: برای | C167: for | F167: 0 | G167: 1 | H167: 161
A168: 162 | B168: بدون | C168: without | F168: 0 | G168: 1 | H168: 162
A169: 163 | B169: بین | C169: between | F169: 0 | G169: 1 | H169: 163
A170: 164 | B170: پیش | C170: in front of | F170: 0 | G170: 1 | H170: 164
A171: 165 | B171: پشت | C171: behind | F171: 0 | G171: 1 | H171: 165
A172: 166 | B172: جلوی | C172: in the presence of | D172: در برابر | F172: 0 | G172: 1 | H172: 166
A173: 167 | B173: روی | C173: on | F173: 0 | G173: 1 | H173: 167
A174: 168 | B174: زیر | C174: under | F174: 0 | G174: 1 | H174: 168
A175: 169 | B175: توی | C175: in, on | F175: 0 | G175: 1 | H175: 169
A176: 170 | B176: نزدیک | C176: near | E176: (to) | F176: 0 | G176: 1 | H176: 170
A177: 171 | B177: از توی | C177: from out of | F177: 0 | G177: 1 | H177: 171
A178: 172 | B178: از روی | C178: off | F178: 0 | G178: 1 | H178: 172
A179: 173 | B179: از زیر | C179: from under | F179: 0 | G179: 1 | H179: 173
A180: 174 | B180: بطرف | C180: in the direction of | F180: 0 | G180: 1 | H180: 174
A181: 175 | B181: بجای | C181: in place of, instead of | F181: 0 | G181: 1 | H181: 175
A182: 176 | B182: از پشت | C182: from behind | F182: 0 | G182: 1 | H182: 176
A183: 177 | B183: از نزدیک | C183: from near | F183: 0 | G183: 1 | H183: 177
A184: 178 | B184: از طرف | C184: from the direction of, on behalf of | F184: 0 | G184: 1 | H184: 178
A185: 179 | B185: در میان | C185: among | F185: 0 | G185: 1 | H185: 179
A186: 180 | B186: از میان | C186: from among | F186: 0 | G186: 1 | H186: 180
A187: 181 | B187: از بین | C187: from between | F187: 0 | G187: 1 | H187: 181
A188: 182 | B188: میز | C188: table | F188: 0 | G188: 1 | H188: 182
A189: 183 | B189: فرش | C189: carpet | F189: 0 | G189: 1 | H189: 183
A190: 184 | B190: نشستن | C190: to sit | F190: 0 | G190: 1 | H190: 184
A191: 185 | B191: می نشینم | C191: I sit | F191: 0 | G191: 1 | H191: 185
A192: 186 | B192: قالیچه | C192: rug | F192: 0 | G192: 1 | H192: 186
A193: 187 | B193: بالکن | C193: balcony | F193: 0 | G193: 1 | H193: 187
A194: 188 | B194: کلید | C194: key | F194: 0 | G194: 1 | H194: 188
A195: 189 | B195: دیوار | C195: wall | F195: 0 | G195: 1 | H195: 189
A196: 190 | B196: بخاری | C196: stove | F196: 0 | G196: 1 | H196: 190
A197: 191 | B197: ایستادن | C197: to stand | F197: 0 | G197: 1 | H197: 191
A198: 192 | B198: می ایستم | C198: I stand | F198: 0 | G198: 1 | H198: 192
A199: 193 | B199: دیگ | C199: pot | F199: 0 | G199: 1 | H199: 193
A200: 194 | B200: بشقاب | C200: plate | F200: 0 | G200: 1 | H200: =A200 -> 194
A201: =1+A200 -> 195 | B201: قاشق | C201: spoon | F201: 0 | G201: 1 | H201: 195
A202: 196 | B202: اثاثیه | C202: furniture | F202: 0 | G202: 1 | H202: 196
A203: 197 | B203: چای | C203: tea | F203: 0 | G203: =IF($A$5>A203,0,IF(A203>$A$6,1,(F203+1)/$H$5+G202)) -> 1 | H203: 197
... 2806 more rows

Sheet Travel
A4: 2999 | H4: Range Sum
A5: =IF(ISNUMBER(Select!E7),IF(Select!E7>1,IF(Select!E7>A4,1,IF(Select!E8<=Select!E7,1,Select!E7)),1),1) -> 1 | B5: =Drill!M3 -> Persian | C5: =Drill!M4 -> English | D5: =Drill!M3&" Hints" -> Persian Hints | E5: =Drill!M4&" Hints" -> English Hints | F5: Delta | G5: Range Cum. | H5: =SUM(OFFSET(Adjusts1,A5-1,0,A6-A5+1,1))+A6-A5+1 -> 25 | M5: =Drill!M5 -> Character: | N5: =Drill!N5 -> 0 | O5: =Drill!O5 -> ئ | P5: =Drill!P5 -> è | Q5: =Drill!Q5 -> ì | R5: =Drill!R5 -> ò | S5: =Drill!S5 -> ù | T5: =Drill!T5 -> 6 | U5: =Drill!U5 -> 7 | V5: =Drill!V5 -> 8 | W5: =Drill!W5 -> 9 | X5: =Drill!X5 -> à | Y5: =Drill!Y5 -> è | Z5: =Drill!Z5 -> ì | AA5: =Drill!AA5 -> ò | AB5: =Drill!AB5 -> ù | AC5: =Drill!AC5 -> 6 | AD5: =Drill!AD5 -> 7 | AE5: =Drill!AE5 -> 8 | AF5: =Drill!AF5 -> 9 | AG5: =Drill!AG5 -> à | AH5: =Drill!AH5 -> è | AI5: =Drill!AI5 -> ì | AJ5: =Drill!AJ5 -> ò | AK5: =Drill!AK5 -> ù | AL5: =Drill!AL5 -> 6 | AM5: =Drill!AM5 -> 7 | AN5: =Drill!AN5 -> 8 | AO5: =Drill!AO5 -> 9 | AP5: =Drill!AP5 -> à | AQ5: =Drill!AQ5 -> è | AR5: =Drill!AR5 -> í | AS5: =Drill!AS5 -> ò | AT5: =Drill!AT5 -> ù | AU5: =Drill!AU5 -> 6 | AV5: =Drill!AV5 -> 7 | AW5: =Drill!AW5 -> 8 | AX5: =Drill!AX5 -> 9
A6: =IF(ISNUMBER(Select!E8),IF(Select!E8>A4,B6,IF(Select!E8<=A5,B6,IF(Select!E8>B6,B6,Select!E8))),B6) -> 25 | B6: =A4-COUNTBLANK(B7:B3005) -> 1602 | F6: Add to 100% | G6: 0 | H6: 0 | M6: =Drill!M6 -> Code: | N6: =Drill!N6 -> 0 | O6: =Drill!O6 -> 1 | P6: =Drill!P6 -> 2 | Q6: =Drill!Q6 -> 3 | R6: =Drill!R6 -> 4 | S6: =Drill!S6 -> 5 | T6: =Drill!T6 -> 6 | U6: =Drill!U6 -> 7 | V6: =Drill!V6 -> 8 | W6: =Drill!W6 -> 9 | X6: =Drill!X6 -> 1 | Y6: =Drill!Y6 -> 2 | Z6: =Drill!Z6 -> 3 | AA6: =Drill!AA6 -> 4 | AB6: =Drill!AB6 -> 5 | AC6: =Drill!AC6 -> 6 | AD6: =Drill!AD6 -> 7 | AE6: =Drill!AE6 -> 8 | AF6: =Drill!AF6 -> 9 | AG6: =Drill!AG6 -> 1 | AH6: =Drill!AH6 -> 2 | AI6: =Drill!AI6 -> 3 | AJ6: =Drill!AJ6 -> 4 | AK6: =Drill!AK6 -> 5 | AL6: =Drill!AL6 -> 6 | AM6: =Drill!AM6 -> 7 | AN6: =Drill!AN6 -> 8 | AO6: =Drill!AO6 -> 9 | AP6: =Drill!AP6 -> 1 | AQ6: =Drill!AQ6 -> 2 | AR6: =Drill!AR6 -> 3 | AS6: =Drill!AS6 -> 4 | AT6: =Drill!AT6 -> 5 | AU6: =Drill!AU6 -> 6 | AV6: =Drill!AV6 -> ~ | AW6: =Drill!AW6 -> ~ | AX6: =Drill!AX6 -> ~
A7: =1 -> 1 | B7: صبح بخیر | C7: good morning | F7: 0 | G7: =IF(OR($A$5>A7,A7>$A$6),0,(F7+1)/$H$5+G6) -> 0.04 | H7: =A7 -> 1
A8: =1+A7 -> 2 | B8: بعد از ظهر بخیر | C8: good afternoon | F8: 0 | G8: =IF(OR($A$5>A8,A8>$A$6),0,(F8+1)/$H$5+G7) -> 0.08 | H8: =A8 -> 2
A9: =1+A8 -> 3 | B9: شب بخیر | C9: good night | F9: 0 | G9: =IF(OR($A$5>A9,A9>$A$6),0,(F9+1)/$H$5+G8) -> 0.12 | H9: 3 | M9: =Drill!M9 -> Step trans: | N9: 1 | O9: =IF(ISERR(FIND(O6,N9)),N9,LEFT(N9,FIND(O6,N9)-1)&O5&MID(N9,FIND(O6,N9)+1,LEN(N9))) -> ئ | P9: =IF(ISERR(FIND(P6,O9)),O9,LEFT(O9,FIND(P6,O9)-1)&P5&MID(O9,FIND(P6,O9)+1,LEN(O9))) -> ئ | Q9: ئ | R9: ئ | S9: ئ | T9: ئ | U9: ئ | V9: ئ | W9: ئ | X9: ئ | Y9: ئ | Z9: ئ | AA9: ئ | AB9: ئ | AC9: ئ | AD9: ئ | AE9: ئ | AF9: ئ | AG9: ئ | AH9: ئ | AI9: ئ | AJ9: ئ | AK9: ئ | AL9: ئ | AM9: ئ | AN9: ئ | AO9: ئ | AP9: ئ | AQ9: ئ | AR9: ئ | AS9: ئ | AT9: ئ | AU9: ئ | AV9: ئ | AW9: ئ | AX9: ئ
A10: 4 | B10: عصر بخیر | C10: good evening | F10: 0 | G10: =IF($A$5>A10,0,IF(A10>$A$6,1,(F10+1)/$H$5+G9)) -> 0.16 | H10: 4 | M10: =Drill!M10 -> W/char: | N10: =IF(N9=0,"",IF(AX9=0,"",AX9)) -> ئ
A11: 5 | B11: خدا حافظ | C11: goodbye | F11: 0 | G11: =IF($A$5>A11,0,IF(A11>$A$6,1,(F11+1)/$H$5+G10)) -> 0.2 | H11: 5
A12: 6 | B12: خواهش می کنم | C12: you're welcome | F12: 0 | G12: 0.24 | H12: 6
A13: 7 | B13: متشکرم | C13: thank you | F13: 0 | G13: 0.28 | H13: 7
A14: 8 | B14: ماندن | C14: to stay | F14: 0 | G14: 0.32 | H14: 8
A15: 9 | B15: جدی | C15: really | D15: seriously! | F15: 0 | G15: 0.36 | H15: 9
A16: 10 | B16: خود | C16: self | F16: 0 | G16: 0.4 | H16: 10
A17: 11 | B17: سمت | C17: direction | D17: (toward) | F17: 0 | G17: 0.44 | H17: 11
A18: 12 | B18: مغازه | C18: store | F18: 0 | G18: 0.48 | H18: 12
A19: 13 | B19: مستقیم | C19: straight ahead | F19: 0 | G19: 0.52 | H19: 13
A20: 14 | B20: معذرت می خواهم | C20: sorry | F20: 0 | G20: 0.56 | H20: 14
A21: 15 | B21: ببخشید | C21: excuse me | F21: 0 | G21: 0.6 | H21: 15
A22: 16 | B22: سلام و تعارفات روزمره | C22: greetings | D22: (as a classification) | F22: 0 | G22: 0.64 | H22: 16
A23: 17 | B23: به زودی می بینمت | C23: see you soon | F23: 0 | G23: 0.68 | H23: 17
A24: 18 | B24: دوشیزه | C24: miss | D24: young lady | F24: 0 | G24: 0.72 | H24: 18
A25: 19 | B25: شوهرم | C25: my husband | F25: 0 | G25: 0.76 | H25: 19
A26: 20 | B26: خانمم | C26: my wife | F26: 0 | G26: 0.8 | H26: 20
A27: 21 | B27: دخترم | C27: my daughter | F27: 0 | G27: 0.84 | H27: 21
A28: 22 | B28: پسرم | C28: my son | F28: 0 | G28: 0.88 | H28: 22
A29: 23 | B29: از آشنایی شما خوشوقتم | C29: how do you do | D29: I'm pleased from your aquaintance | F29: 0 | G29: 0.92 | H29: 23
A30: 24 | B30: حالتان چطور است؟ | C30: how are you? | F30: 0 | G30: 0.96 | H30: 24
A31: 25 | B31: زندگی چطور می گذرد؟ | C31: how's life? | F31: 0 | G31: 1 | H31: 25
A32: 26 | B32: سوالات | C32: questions | F32: 0 | G32: 1 | H32: 26
A33: 27 | B33: این کتاب را کجا می توانم پیدا کنم؟ | C33: Where can I find this book? | F33: 0 | G33: 1 | H33: 27
A34: 28 | B34: او کیست؟ | C34: Who's that? | F34: 0 | G34: 1 | H34: 28
A35: 29 | B35: آن چیست؟ | C35: What is that? | F35: 0 | G35: 1 | H35: 29
A36: 30 | B36: آن چه معنی می دهد؟ | C36: What does that mean? | F36: 0 | G36: 1 | H36: 30
A37: 31 | B37: کدام اتوبوس به تهران می رود؟ | C37: Which bus goes to Tehran? | F37: 0 | G37: 1 | H37: 31
A38: 32 | B38: چه وقت می رسیم؟ | C38: When do we arrive? | D38: vaqt | F38: 0 | G38: 1 | H38: 32
A39: 33 | B39: چه وقت... باز می شود؟ | C39: When does… open? | F39: 0 | G39: 1 | H39: 33
A40: 34 | B40: چه وقت... بسته می شود؟ | C40: When does… close? | F40: 0 | G40: 1 | H40: 34
A41: 35 | B41: چه قدر؟ | C41: How much? | D41: che | F41: 0 | G41: 1 | H41: 35
A42: 36 | B42: خواهش | C42: a request | F42: 0 | G42: 1 | H42: 36
A43: 37 | B43: چند تا؟ | C43: How many? | D43: chand | F43: 0 | G43: 1 | H43: 37
A44: 38 | B44: خوشحال | C44: happy | F44: 0 | G44: 1 | H44: 38
A45: 39 | B45: چقدر می ارزد؟ | C45: How much does this cost? | D45: cheghadr | F45: 0 | G45: 1 | H45: 39
A46: 40 | B46: قیمتش چقدر است؟ | C46: How much does this cost? | D46: gheymatash chqdr | F46: 0 | G46: 1 | H46: 40
A47: 41 | B47: چطور می توانم به... برسم؟ | C47: How can I get to… ? | F47: 0 | G47: 1 | H47: 41
A48: 42 | B48: چقدر راه است؟ | C48: How far is? | F48: 0 | G48: 1 | H48: 42
A49: 43 | B49: چقدر زمان... ؟ | C49: How long… ? | D49: zamahn | F49: 0 | G49: 1 | H49: 43
A50: 44 | B50: چه مدت... ؟ | C50: How long… ? | D50: modat | F50: 0 | G50: 1 | H50: 44
A51: 45 | B51: به این در انگلیسی چه می گویید؟ | C51: What do you call this in English? | D51: to this…what you say | F51: 0 | G51: 1 | H51: 45
A52: 46 | B52: به این در انگلیسی چه می نامید؟ | C52: What do you call this in English? | D52: to this… name it | F52: 0 | G52: 1 | H52: 46
A53: 47 | B53: درست است؟ | C53: Is that right? | F53: 0 | G53: 1 | H53: 47
A54: 48 | B54: چرا شما می خندید؟ | C54: Why are you laughing? | F54: 0 | G54: 1 | H54: 48
A55: 49 | B55: آیا شما انگلیسی صحبت می کنید؟ | C55: Do you speak English? | D55: (if you…) | F55: 0 | G55: 1 | H55: 49
A56: 50 | B56: آیا کسی اینجا انگلیسی صحبت می کند؟ | C56: Does anyone here speak English? | D56: (if anyone here…) | F56: 0 | G56: 1 | H56: 50
A57: 51 | B57: من خیلی انگلیسی بلد نیستم | C57: I don't speak much English | D57: (I) know | F57: 0 | G57: 1 | H57: 51
A58: 52 | B58: آیا ممکن است آهسته تر صحبت کنید؟ | C58: Could you speak more slowly? | D58: (if possible…) | F58: 0 | G58: 1 | H58: 52
A59: 53 | B59: این را در انگلیسی چطور می گویید؟ | C59: How do you say this in English? | D59: the this in English how you speak | F59: 0 | G59: 1 | H59: 53
A60: 54 | B60: آیا ممکن است لطفأ آن را یاد داشت کنید؟ | C60: Could you write it down please? | D60: (if possible please that…) | F60: 0 | G60: 1 | H60: 54
A61: 55 | B61: لطفأ آیا ممکن است آن را... کنید؟ | C61: Could you please… it? | D61: (please if possible that…) | F61: 0 | G61: 1 | H61: 55
A62: 56 | B62: تکرار کردن | C62: repeat | F62: 0 | G62: 1 | H62: 56
A63: 57 | B63: هجی کردن | C63: spell | F63: 0 | G63: 1 | H63: 57
A64: 58 | B64: توضیح دادن | C64: explain | F64: 0 | G64: 1 | H64: 58
A65: 59 | B65: ترجمه کردن | C65: translate | F65: 0 | G65: 1 | H65: 59
A66: 60 | B66: لطفأ... را در کتاب به من نشان بدهید | C66: Please point to the… in the book. | F66: 0 | G66: 1 | H66: 60
A67: 61 | B67: عبارت | C67: phrase | D67: ebah… | F67: 0 | G67: 1 | H67: 61
A68: 62 | B68: اصطلاح | C68: phrase | D68: est… | F68: 0 | G68: 1 | H68: 62
A69: 63 | B69: واژه | C69: word | D69: vahzh… | F69: 0 | G69: 1 | H69: 63
A70: 64 | B70: کلمه | C70: word | D70: kal… | F70: 0 | G70: 1 | H70: 64
A71: 65 | B71: جمله | C71: sentence | F71: 0 | G71: 1 | H71: 65
A72: 66 | B72: یک لحظه | C72: Just a moment. | F72: 0 | G72: 1 | H72: =A72 -> 66
A73: =1+A72 -> 67 | B73: ببینم می توانم آن را در این کتاب پیدا کنم | C73: I'll see if I can find it in this book | F73: 0 | G73: 1 | H73: 67
A74: 68 | B74: این به چه معنی است؟ | C74: What does this mean? | D74: (this to what…) | F74: 0 | G74: 1 | H74: 68
A75: 69 | B75: متوجه شدم | C75: I understood | F75: 0 | G75: =IF($A$5>A75,0,IF(A75>$A$6,1,(F75+1)/$H$5+G74)) -> 1 | H75: 69
A76: 70 | B76: متوجه نشدم | C76: I didn't understand | F76: 0 | G76: 1 | H76: 70
A77: 71 | B77: آیا شما فرهنگ لغت دارید؟ | C77: Do you have a dictionary? | D77: (If you…) | F77: 0 | G77: 1 | H77: 71
A78: 72 | B78: واژه نامه | C78: dictionary | D78: vahzh… | F78: 0 | G78: 1 | H78: 72
A79: 73 | B79: من ترجمۀ صحیح آن را نمی توانم پیدا کنم | C79: I can't find the right translation | F79: 0 | G79: 1 | H79: 73
A80: 74 | B80: من مطمئن نیستم که تلفظ آن صحیح باشد | C80: I'm not sure whether the pronunciation is right | F80: 0 | G80: 1 | H80: 74
A81: 75 | B81: آیا می توانم... را داشته باشم؟ | C81: Can I have… ? | D81: (if can… ) | F81: 0 | G81: 1 | H81: 75
A82: 76 | B82: آیا ما ممکن است... را داشته باشیم؟ | C82: Can we have… ? | D82: (if we possible… ) | F82: 0 | G82: 1 | H82: 76
A83: 77 | B83: آیا ممکن است... را به من بگوئید؟ | C83: Can you tell me… ? | D83: (if possible… ) | F83: 0 | G83: 1 | H83: 77
A84: 78 | B84: آیا ممکن است به من کمک کنید؟ | C84: Can you help me? | D84: (if possible to me… ) | F84: 0 | G84: 1 | H84: 78
A85: 79 | B85: آیا می توانید مرا به... راهنمایی کنید؟ | C85: Can you direct me to… ? | D85: (if can me to… ) | F85: 0 | G85: 1 | H85: 79
A86: 80 | B86: من می خواهم | C86: I'd like | D86: I… | F86: 0 | G86: 1 | H86: 80
A87: 81 | B87: ما می خواهیم | C87: We'd like | F87: 0 | G87: 1 | H87: 81
A88: 82 | B88: ممکن است لطفأ این را به من بدهید؟ | C88: Could you give me this, please? | D88: (possible please…) | F88: 0 | G88: 1 | H88: 82
A89: 83 | B89: آن را برایم بیاور | C89: bring me that | F89: 0 | G89: 1 | H89: 83
A90: 84 | B90: آن را به من نشان بده | C90: Show me that | F90: 0 | G90: 1 | H90: 84
A91: 85 | B91: من دارم دنبال... می گردم | C91: I'm looking for… | F91: 0 | G91: 1 | H91: 85
A92: 86 | B92: من به... نیاز دارم | C92: I need… | F92: 0 | G92: 1 | H92: 86
A93: 87 | B93: آیا ممکن است... را به من نشان بدهید؟ | C93: Can you show me… ? | D93: if possible… | F93: 0 | G93: 1 | H93: 87
A94: 88 | B94: چه چیزی را برای نوشیدن می توانم تعارفتان کنم؟ | C94: What can I offer you to drink? | F94: 0 | G94: 1 | H94: 88
A95: 89 | B95: بسلامتی | C95: Cheers | F95: 0 | G95: 1 | H95: 89
A96: 90 | B96: مردم | C96: people | F96: 0 | G96: 1 | H96: 90
A97: 91 | B97: من... را گم کرده ام | C97: I have lost… | F97: 0 | G97: 1 | H97: 91
A98: 92 | B98: من گرسنه ام | C98: I'm hungry | F98: 0 | G98: 1 | H98: 92
A99: 93 | B99: من تشنه ام | C99: I'm thirsty | F99: 0 | G99: 1 | H99: 93
A100: 94 | B100: من گم شده ام | C100: I'm lost | F100: 0 | G100: 1 | H100: 94
A101: 95 | B101: من دیر کرده ام | C101: I'm late | F101: 0 | G101: 1 | H101: 95
A102: 96 | B102: دیرم شده است | C102: my late is becoming | F102: 0 | G102: 1 | H102: 96
A103: 97 | B103: من خسته ام | C103: I'm tired | F103: 0 | G103: 1 | H103: 97
A104: 98 | B104: تماس می گیرم | C104: I'll get in touch | F104: 0 | G104: 1 | H104: 98
A105: 99 | B105: آیا این... است؟ | C105: Is it… ? | F105: 0 | G105: 1 | H105: 99
A106: 100 | B106: مهم است | C106: It is important | F106: 0 | G106: 1 | H106: 100
A107: 101 | B107: فوری است | C107: It's urgent | F107: 0 | G107: 1 | H107: 101
A108: 102 | B108: اضطراری است | C108: It's urgent | D108: exter… | F108: 0 | G108: 1 | H108: 102
A109: 103 | B109: وجود دارند | C109: There are | F109: 0 | G109: 1 | H109: 103
A110: 104 | B110: هیچ... وجود ندارد | C110: There isn't any… | F110: 0 | G110: 1 | H110: 104
A111: 105 | B111: به اندازۀ کافی | C111: enough | F111: 0 | G111: 1 | H111: 105
A112: 106 | B112: بیرون | C112: outside | D112: bi… | F112: 0 | G112: 1 | H112: 106
A113: 107 | B113: خارج | C113: outside | D113: khah… | F113: 0 | G113: 1 | H113: 107
A114: 108 | B114: داخل | C114: inside | D114: dah… | F114: 0 | G114: 1 | H114: 108
A115: 109 | B115: تو | C115: inside | F115: 0 | G115: 1 | H115: 109
A116: 110 | B116: درون | C116: inside | D116: dar… | F116: 0 | G116: 1 | H116: 110
A117: 111 | B117: نزدیک | C117: near | F117: 0 | G117: 1 | H117: 111
A118: 112 | B118: دور | C118: far | F118: 0 | G118: 1 | H118: 112
A119: 113 | B119: آسان | C119: easy | F119: 0 | G119: 1 | H119: 113
A120: 114 | B120: دشوار | C120: difficult | F120: 0 | G120: 1 | H120: 114
A121: 115 | B121: خوب | C121: good | F121: 0 | G121: 1 | H121: 115
A122: 116 | B122: بد | C122: bad | F122: 0 | G122: 1 | H122: 116
A123: 117 | B123: ارزان | C123: cheap | F123: 0 | G123: 1 | H123: 117
A124: 118 | B124: گران | C124: expensive | F124: 0 | G124: 1 | H124: 118
A125: 119 | B125: بزرگ | C125: big | F125: 0 | G125: 1 | H125: 119
A126: 120 | B126: کوچک | C126: small | F126: 0 | G126: 1 | H126: 120
A127: 121 | B127: درست | C127: right | F127: 0 | G127: 1 | H127: 121
A128: 122 | B128: غلط | C128: wrong | F128: 0 | G128: 1 | H128: 122
A129: 123 | B129: سبک | C129: light | F129: 0 | G129: 1 | H129: 123
A130: 124 | B130: سنگین | C130: heavy | F130: 0 | G130: 1 | H130: 124
A131: 125 | B131: بالا | C131: up | F131: 0 | G131: 1 | H131: 125
A132: 126 | B132: پایین | C132: down | F132: 0 | G132: 1 | H132: 126
A133: 127 | B133: باز | C133: open | F133: 0 | G133: 1 | H133: 127
A134: 128 | B134: بسته | C134: shut | D134: closed | F134: 0 | G134: 1 | H134: 128
A135: 129 | B135: پیر | C135: old | D135: (opp. young) | F135: 0 | G135: 1 | H135: 129
A136: 130 | B136: جوان | C136: young | F136: 0 | G136: 1 | H136: =A136 -> 130
A137: =1+A136 -> 131 | B137: کهنه | C137: old | D137: (opp. New) | F137: 0 | G137: 1 | H137: 131
A138: 132 | B138: نو | C138: new | F138: 0 | G138: 1 | H138: 132
A139: 133 | B139: تند | C139: fast | F139: 0 | G139: =IF($A$5>A139,0,IF(A139>$A$6,1,(F139+1)/$H$5+G138)) -> 1 | H139: 133
A140: 134 | B140: آهسته | C140: slow | F140: 0 | G140: 1 | H140: 134
A141: 135 | B141: پر | C141: full | F141: 0 | G141: 1 | H141: 135
A142: 136 | B142: خالی | C142: empty | F142: 0 | G142: 1 | H142: 136
A143: 137 | B143: آزاد | C143: free | F143: 0 | G143: 1 | H143: 137
A144: 138 | B144: اشغال | C144: occupied | F144: 0 | G144: 1 | H144: 138
A145: 139 | B145: زود | C145: early | F145: 0 | G145: 1 | H145: 139
A146: 140 | B146: دیر | C146: late | F146: 0 | G146: 1 | H146: 140
A147: 141 | B147: گرم | C147: hot | F147: 0 | G147: 1 | H147: 141
A148: 142 | B148: سرد | C148: cold | F148: 0 | G148: 1 | H148: 142
A149: 143 | B149: روی | C149: on | F149: 0 | G149: 1 | H149: 143
A150: 144 | B150: عقب | C150: behind | D150: arabic? | F150: 0 | G150: 1 | H150: 144
A151: 145 | B151: پشت | C151: behind | D151: farsi? | F151: 0 | G151: 1 | H151: 145
A152: 146 | B152: بجز | C152: except | D152: simple | F152: 0 | G152: 1 | H152: 146
A153: 147 | B153: به غیر از | C153: except | D153: 3 words | F153: 0 | G153: 1 | H153: 147
A154: 148 | B154: در | C154: at | D154: simple | F154: 0 | G154: 1 | H154: 148
A155: 149 | B155: در کنار | C155: at | D155: 2 words | F155: 0 | G155: 1 | H155: 149
A156: 150 | B156: از میان | C156: through | D156: …meyon | F156: 0 | G156: 1 | H156: 150
A157: 151 | B157: از وسط | C157: through | D157: …vasat | F157: 0 | G157: 1 | H157: 151
A158: 152 | B158: از | C158: through | D158: simple | F158: 0 | G158: 1 | H158: 152
A159: 153 | B159: در طول | C159: during | D159: 2 words | F159: 0 | G159: 1 | H159: 153
A160: 154 | B160: در طول مدت | C160: during | D160: 3 words | F160: 0 | G160: 1 | H160: 154
A161: 155 | B161: با | C161: with | F161: 0 | G161: 1 | H161: 155
A162: 156 | B162: بعد از | C162: after | F162: 0 | G162: 1 | H162: 156
A163: 157 | B163: به سوی | C163: towards | F163: 0 | G163: 1 | H163: 157
A164: 158 | B164: به | C164: to | F164: 0 | G164: 1 | H164: 158
A165: 159 | B165: نزدیک | C165: next to | D165: common | F165: 0 | G165: 1 | H165: 159
A166: 160 | B166: پهلوی | C166: next to | D166: less common | F166: 0 | G166: 1 | H166: 160
A167: 161 | B167: زیر | C167: under | F167: 0 | G167: 1 | H167: 161
A168: 162 | B168: روی... | C168: on… | F168: 0 | G168: 1 | H168: 162
A169: 163 | B169: بالای | C169: over | F169: 0 | G169: 1 | H169: 163
A170: 164 | B170: از | C170: since | F170: 0 | G170: 1 | H170: 164
A171: 165 | B171: در برابر | C171: against | D171: …bar… | F171: 0 | G171: 1 | H171: 165
A172: 166 | B172: در مقابل | C172: against | D172: …moq… | F172: 0 | G172: 1 | H172: 166
A173: 167 | B173: روبروی | C173: against | D173: roo… | F173: 0 | G173: 1 | H173: 167
A174: 168 | B174: تا | C174: until | F174: 0 | G174: 1 | H174: 168
A175: 169 | B175: میان | C175: between | D175: mee… | F175: 0 | G175: 1 | H175: 169
A176: 170 | B176: بین | C176: between | D176: beh… | F176: 0 | G176: 1 | H176: 170
A177: 171 | B177: از | C177: from | F177: 0 | G177: 1 | H177: 171
A178: 172 | B178: برای | C178: for | F178: 0 | G178: 1 | H178: 172
A179: 173 | B179: قبل از | C179: before | F179: 0 | G179: 1 | H179: 173
A180: 174 | B180: روبروی | C180: in front of | D180: roo… | F180: 0 | G180: 1 | H180: 174
A181: 175 | B181: مقابل | C181: in front of | D181: moq… | F181: 0 | G181: 1 | H181: 175
A182: 176 | B182: بدون | C182: without | F182: 0 | G182: 1 | H182: 176
A183: 177 | B183: تا حالا | C183: already | D183: فعلأ/همه | F183: 0 | G183: 1 | H183: 177
A184: 178 | B184: پس از آن | C184: then | D184: از/سپس | F184: 0 | G184: 1 | H184: 178
A185: 179 | B185: و | C185: and | F185: 0 | G185: 1 | H185: 179
A186: 180 | B186: اما | C186: but | F186: 0 | G186: 1 | H186: 180
A187: 181 | B187: شاید | C187: perhaps | F187: 0 | G187: 1 | H187: 181
A188: 182 | B188: هیچکس | C188: nobody | F188: 0 | G188: 1 | H188: 182
A189: 183 | B189: بیشتر نه | C189: no more | D189: هم نه | F189: 0 | G189: 1 | H189: 183
A190: 184 | B190: هنوز | C190: yet | F190: 0 | G190: 1 | H190: 184
A191: 185 | B191: هرگز | C191: never | F191: 0 | G191: 1 | H191: 185
A192: 186 | B192: الأن | C192: now | D192: حالا | F192: 0 | G192: 1 | H192: 186
A193: 187 | B193: یا | C193: or | F193: 0 | G193: 1 | H193: 187
A194: 188 | B194: همچنین | C194: also | D194: نیز | F194: 0 | G194: 1 | H194: 188
A195: 189 | B195: فقط | C195: only | F195: 0 | G195: 1 | H195: 189
A196: 190 | B196: به زودی | C196: soon | D196: beh… | F196: 0 | G196: 1 | H196: 190
A197: 191 | B197: زود | C197: soon | F197: 0 | G197: 1 | H197: 191
A198: 192 | B198: همیشه | C198: always | F198: 0 | G198: 1 | H198: 192
A199: 193 | B199: خیلی | C199: very | F199: 0 | G199: 1 | H199: 193
A200: 194 | B200: ورود | C200: arrival | F200: 0 | G200: 1 | H200: =A200 -> 194
A201: =1+A200 -> 195 | B201: بفرمایید این... من است | C201: Here is my… | F201: 0 | G201: 1 | H201: 195
A202: 196 | B202: گذرنامه | C202: passport | F202: 0 | G202: 1 | H202: 196
A203: 197 | B203: شناسنامه | C203: identity card | F203: 0 | G203: =IF($A$5>A203,0,IF(A203>$A$6,1,(F203+1)/$H$5+G202)) -> 1 | H203: 197
... 2806 more rows

Sheet Set A
A4: 2999 | H4: Range Sum
A5: =IF(ISNUMBER(Select!E7),IF(Select!E7>1,IF(Select!E7>A4,1,IF(Select!E8<=Select!E7,1,Select!E7)),1),1) -> 1 | B5: =Drill!M3 -> Persian | C5: =Drill!M4 -> English | D5: =Drill!M3&" Hints" -> Persian Hints | E5: =Drill!M4&" Hints" -> English Hints | F5: Delta | G5: Range Cum. | H5: =SUM(OFFSET(Adjusts2,A5-1,0,A6-A5+1,1))+A6-A5+1 -> 10 | M5: =Drill!M5 -> Character: | N5: =Drill!N5 -> 0 | O5: =Drill!O5 -> ئ | P5: =Drill!P5 -> è | Q5: =Drill!Q5 -> ì | R5: =Drill!R5 -> ò | S5: =Drill!S5 -> ù | T5: =Drill!T5 -> 6 | U5: =Drill!U5 -> 7 | V5: =Drill!V5 -> 8 | W5: =Drill!W5 -> 9 | X5: =Drill!X5 -> à | Y5: =Drill!Y5 -> è | Z5: =Drill!Z5 -> ì | AA5: =Drill!AA5 -> ò | AB5: =Drill!AB5 -> ù | AC5: =Drill!AC5 -> 6 | AD5: =Drill!AD5 -> 7 | AE5: =Drill!AE5 -> 8 | AF5: =Drill!AF5 -> 9 | AG5: =Drill!AG5 -> à | AH5: =Drill!AH5 -> è | AI5: =Drill!AI5 -> ì | AJ5: =Drill!AJ5 -> ò | AK5: =Drill!AK5 -> ù | AL5: =Drill!AL5 -> 6 | AM5: =Drill!AM5 -> 7 | AN5: =Drill!AN5 -> 8 | AO5: =Drill!AO5 -> 9 | AP5: =Drill!AP5 -> à | AQ5: =Drill!AQ5 -> è | AR5: =Drill!AR5 -> í | AS5: =Drill!AS5 -> ò | AT5: =Drill!AT5 -> ù | AU5: =Drill!AU5 -> 6 | AV5: =Drill!AV5 -> 7 | AW5: =Drill!AW5 -> 8 | AX5: =Drill!AX5 -> 9
A6: =IF(ISNUMBER(Select!E8),IF(Select!E8>A4,B6,IF(Select!E8<=A5,B6,IF(Select!E8>B6,B6,Select!E8))),B6) -> 10 | B6: =A4-COUNTBLANK(B7:B3005) -> 10 | F6: Add to 100% | G6: 0 | H6: 0 | M6: =Drill!M6 -> Code: | N6: =Drill!N6 -> 0 | O6: =Drill!O6 -> 1 | P6: =Drill!P6 -> 2 | Q6: =Drill!Q6 -> 3 | R6: =Drill!R6 -> 4 | S6: =Drill!S6 -> 5 | T6: =Drill!T6 -> 6 | U6: =Drill!U6 -> 7 | V6: =Drill!V6 -> 8 | W6: =Drill!W6 -> 9 | X6: =Drill!X6 -> 1 | Y6: =Drill!Y6 -> 2 | Z6: =Drill!Z6 -> 3 | AA6: =Drill!AA6 -> 4 | AB6: =Drill!AB6 -> 5 | AC6: =Drill!AC6 -> 6 | AD6: =Drill!AD6 -> 7 | AE6: =Drill!AE6 -> 8 | AF6: =Drill!AF6 -> 9 | AG6: =Drill!AG6 -> 1 | AH6: =Drill!AH6 -> 2 | AI6: =Drill!AI6 -> 3 | AJ6: =Drill!AJ6 -> 4 | AK6: =Drill!AK6 -> 5 | AL6: =Drill!AL6 -> 6 | AM6: =Drill!AM6 -> 7 | AN6: =Drill!AN6 -> 8 | AO6: =Drill!AO6 -> 9 | AP6: =Drill!AP6 -> 1 | AQ6: =Drill!AQ6 -> 2 | AR6: =Drill!AR6 -> 3 | AS6: =Drill!AS6 -> 4 | AT6: =Drill!AT6 -> 5 | AU6: =Drill!AU6 -> 6 | AV6: =Drill!AV6 -> ~ | AW6: =Drill!AW6 -> ~ | AX6: =Drill!AX6 -> ~
A7: =1 -> 1 | B7: بنا | C7: a builder | F7: 0 | G7: =IF(OR($A$5>A7,A7>$A$6),0,(F7+1)/$H$5+G6) -> 0.1 | H7: =A7 -> 1
A8: =1+A7 -> 2 | B8: سن | C8: age | F8: 0 | G8: =IF(OR($A$5>A8,A8>$A$6),0,(F8+1)/$H$5+G7) -> 0.2 | H8: =A8 -> 2
A9: =1+A8 -> 3 | B9: بس | C9: enough | F9: 0 | G9: =IF(OR($A$5>A9,A9>$A$6),0,(F9+1)/$H$5+G8) -> 0.3 | H9: 3 | M9: =Drill!M9 -> Step trans: | N9: 1456 | O9: =IF(ISERR(FIND(O6,N9)),N9,LEFT(N9,FIND(O6,N9)-1)&O5&MID(N9,FIND(O6,N9)+1,LEN(N9))) -> ئ456 | P9: =IF(ISERR(FIND(P6,O9)),O9,LEFT(O9,FIND(P6,O9)-1)&P5&MID(O9,FIND(P6,O9)+1,LEN(O9))) -> ئ456 | Q9: ئ456 | R9: ئò56 | S9: ئòù6 | T9: ئòù6 | U9: ئòù6 | V9: ئòù6 | W9: ئòù6 | X9: ئòù6 | Y9: ئòù6 | Z9: ئòù6 | AA9: ئòù6 | AB9: ئòù6 | AC9: ئòù6 | AD9: ئòù6 | AE9: ئòù6 | AF9: ئòù6 | AG9: ئòù6 | AH9: ئòù6 | AI9: ئòù6 | AJ9: ئòù6 | AK9: ئòù6 | AL9: ئòù6 | AM9: ئòù6 | AN9: ئòù6 | AO9: ئòù6 | AP9: ئòù6 | AQ9: ئòù6 | AR9: ئòù6 | AS9: ئòù6 | AT9: ئòù6 | AU9: ئòù6 | AV9: ئòù6 | AW9: ئòù6 | AX9: ئòù6
A10: 4 | B10: دم | C10: tail | F10: 0 | G10: =IF($A$5>A10,0,IF(A10>$A$6,1,(F10+1)/$H$5+G9)) -> 0.4 | H10: 4 | M10: =Drill!M10 -> W/char: | N10: =IF(N9=0,"",IF(AX9=0,"",AX9)) -> ئòù6
A11: 5 | B11: تا | C11: as far as, until | F11: 0 | G11: =IF($A$5>A11,0,IF(A11>$A$6,1,(F11+1)/$H$5+G10)) -> 0.5 | H11: 5
A12: 6 | B12: زر | C12: gold | F12: 0 | G12: 0.6 | H12: 6
A13: 7 | B13: هر چیز | C13: everything | F13: 0 | G13: 0.7 | H13: 7
A14: 8 | B14: شیشه | C14: glass | F14: 0 | G14: 0.8 | H14: 8
A15: 9 | B15: پیچ | C15: screw | F15: 0 | G15: 0.9 | H15: 9
A16: 10 | B16: پس | C16: then | F16: 0 | G16: 1 | H16: 10
A17: 11 | F17: 0 | G17: 1 | H17: 11
A18: 12 | F18: 0 | G18: 1 | H18: 12
A19: 13 | F19: 0 | G19: 1 | H19: 13
A20: 14 | F20: 0 | G20: 1 | H20: 14
A21: 15 | F21: 0 | G21: 1 | H21: 15
A22: 16 | F22: 0 | G22: 1 | H22: 16
A23: 17 | F23: 0 | G23: 1 | H23: 17
A24: 18 | F24: 0 | G24: 1 | H24: 18
A25: 19 | F25: 0 | G25: 1 | H25: 19
A26: 20 | F26: 0 | G26: 1 | H26: 20
A27: 21 | F27: 0 | G27: 1 | H27: 21
A28: 22 | F28: 0 | G28: 1 | H28: 22
A29: 23 | F29: 0 | G29: 1 | H29: 23
A30: 24 | F30: 0 | G30: 1 | H30: 24
A31: 25 | F31: 0 | G31: 1 | H31: 25
A32: 26 | F32: 0 | G32: 1 | H32: 26
A33: 27 | F33: 0 | G33: 1 | H33: 27
A34: 28 | F34: 0 | G34: 1 | H34: 28
A35: 29 | F35: 0 | G35: 1 | H35: 29
A36: 30 | F36: 0 | G36: 1 | H36: 30
A37: 31 | F37: 0 | G37: 1 | H37: 31
A38: 32 | F38: 0 | G38: 1 | H38: 32
A39: 33 | F39: 0 | G39: 1 | H39: 33
A40: 34 | F40: 0 | G40: 1 | H40: 34
A41: 35 | F41: 0 | G41: 1 | H41: 35
A42: 36 | F42: 0 | G42: 1 | H42: 36
A43: 37 | F43: 0 | G43: 1 | H43: 37
A44: 38 | F44: 0 | G44: 1 | H44: 38
A45: 39 | F45: 0 | G45: 1 | H45: 39
A46: 40 | F46: 0 | G46: 1 | H46: 40
A47: 41 | F47: 0 | G47: 1 | H47: 41
A48: 42 | F48: 0 | G48: 1 | H48: 42
A49: 43 | F49: 0 | G49: 1 | H49: 43
A50: 44 | F50: 0 | G50: 1 | H50: 44
A51: 45 | F51: 0 | G51: 1 | H51: 45
A52: 46 | F52: 0 | G52: 1 | H52: 46
A53: 47 | F53: 0 | G53: 1 | H53: 47
A54: 48 | F54: 0 | G54: 1 | H54: 48
A55: 49 | F55: 0 | G55: 1 | H55: 49
A56: 50 | F56: 0 | G56: 1 | H56: 50
A57: 51 | F57: 0 | G57: 1 | H57: 51
A58: 52 | F58: 0 | G58: 1 | H58: 52
A59: 53 | F59: 0 | G59: 1 | H59: 53
A60: 54 | F60: 0 | G60: 1 | H60: 54
A61: 55 | F61: 0 | G61: 1 | H61: 55
A62: 56 | F62: 0 | G62: 1 | H62: 56
A63: 57 | F63: 0 | G63: 1 | H63: 57
A64: 58 | F64: 0 | G64: 1 | H64: 58
A65: 59 | F65: 0 | G65: 1 | H65: 59
A66: 60 | F66: 0 | G66: 1 | H66: 60
A67: 61 | F67: 0 | G67: 1 | H67: 61
A68: 62 | F68: 0 | G68: 1 | H68: 62
A69: 63 | F69: 0 | G69: 1 | H69: 63
A70: 64 | F70: 0 | G70: 1 | H70: 64
A71: 65 | F71: 0 | G71: 1 | H71: 65
A72: 66 | F72: 0 | G72: 1 | H72: =A72 -> 66
A73: =1+A72 -> 67 | F73: 0 | G73: 1 | H73: 67
A74: 68 | F74: 0 | G74: 1 | H74: 68
A75: 69 | F75: 0 | G75: =IF($A$5>A75,0,IF(A75>$A$6,1,(F75+1)/$H$5+G74)) -> 1 | H75: 69
A76: 70 | F76: 0 | G76: 1 | H76: 70
A77: 71 | F77: 0 | G77: 1 | H77: 71
A78: 72 | F78: 0 | G78: 1 | H78: 72
A79: 73 | F79: 0 | G79: 1 | H79: 73
A80: 74 | F80: 0 | G80: 1 | H80: 74
A81: 75 | F81: 0 | G81: 1 | H81: 75
A82: 76 | F82: 0 | G82: 1 | H82: 76
A83: 77 | F83: 0 | G83: 1 | H83: 77
A84: 78 | F84: 0 | G84: 1 | H84: 78
A85: 79 | F85: 0 | G85: 1 | H85: 79
A86: 80 | F86: 0 | G86: 1 | H86: 80
A87: 81 | F87: 0 | G87: 1 | H87: 81
A88: 82 | F88: 0 | G88: 1 | H88: 82
A89: 83 | F89: 0 | G89: 1 | H89: 83
A90: 84 | F90: 0 | G90: 1 | H90: 84
A91: 85 | F91: 0 | G91: 1 | H91: 85
A92: 86 | F92: 0 | G92: 1 | H92: 86
A93: 87 | F93: 0 | G93: 1 | H93: 87
A94: 88 | F94: 0 | G94: 1 | H94: 88
A95: 89 | F95: 0 | G95: 1 | H95: 89
A96: 90 | F96: 0 | G96: 1 | H96: 90
A97: 91 | F97: 0 | G97: 1 | H97: 91
A98: 92 | F98: 0 | G98: 1 | H98: 92
A99: 93 | F99: 0 | G99: 1 | H99: 93
A100: 94 | F100: 0 | G100: 1 | H100: 94
A101: 95 | F101: 0 | G101: 1 | H101: 95
A102: 96 | F102: 0 | G102: 1 | H102: 96
A103: 97 | F103: 0 | G103: 1 | H103: 97
A104: 98 | F104: 0 | G104: 1 | H104: 98
A105: 99 | F105: 0 | G105: 1 | H105: 99
A106: 100 | F106: 0 | G106: 1 | H106: 100
A107: 101 | F107: 0 | G107: 1 | H107: 101
A108: 102 | F108: 0 | G108: 1 | H108: 102
A109: 103 | F109: 0 | G109: 1 | H109: 103
A110: 104 | F110: 0 | G110: 1 | H110: 104
A111: 105 | F111: 0 | G111: 1 | H111: 105
A112: 106 | F112: 0 | G112: 1 | H112: 106
A113: 107 | F113: 0 | G113: 1 | H113: 107
A114: 108 | F114: 0 | G114: 1 | H114: 108
A115: 109 | F115: 0 | G115: 1 | H115: 109
A116: 110 | F116: 0 | G116: 1 | H116: 110
A117: 111 | F117: 0 | G117: 1 | H117: 111
A118: 112 | F118: 0 | G118: 1 | H118: 112
A119: 113 | F119: 0 | G119: 1 | H119: 113
A120: 114 | F120: 0 | G120: 1 | H120: 114
A121: 115 | F121: 0 | G121: 1 | H121: 115
A122: 116 | F122: 0 | G122: 1 | H122: 116
A123: 117 | F123: 0 | G123: 1 | H123: 117
A124: 118 | F124: 0 | G124: 1 | H124: 118
A125: 119 | F125: 0 | G125: 1 | H125: 119
A126: 120 | F126: 0 | G126: 1 | H126: 120
A127: 121 | F127: 0 | G127: 1 | H127: 121
A128: 122 | F128: 0 | G128: 1 | H128: 122
A129: 123 | F129: 0 | G129: 1 | H129: 123
A130: 124 | F130: 0 | G130: 1 | H130: 124
A131: 125 | F131: 0 | G131: 1 | H131: 125
A132: 126 | F132: 0 | G132: 1 | H132: 126
A133: 127 | F133: 0 | G133: 1 | H133: 127
A134: 128 | F134: 0 | G134: 1 | H134: 128
A135: 129 | F135: 0 | G135: 1 | H135: 129
A136: 130 | F136: 0 | G136: 1 | H136: =A136 -> 130
A137: =1+A136 -> 131 | F137: 0 | G137: 1 | H137: 131
A138: 132 | F138: 0 | G138: 1 | H138: 132
A139: 133 | F139: 0 | G139: =IF($A$5>A139,0,IF(A139>$A$6,1,(F139+1)/$H$5+G138)) -> 1 | H139: 133
A140: 134 | F140: 0 | G140: 1 | H140: 134
A141: 135 | F141: 0 | G141: 1 | H141: 135
A142: 136 | F142: 0 | G142: 1 | H142: 136
A143: 137 | F143: 0 | G143: 1 | H143: 137
A144: 138 | F144: 0 | G144: 1 | H144: 138
A145: 139 | F145: 0 | G145: 1 | H145: 139
A146: 140 | F146: 0 | G146: 1 | H146: 140
A147: 141 | F147: 0 | G147: 1 | H147: 141
A148: 142 | F148: 0 | G148: 1 | H148: 142
A149: 143 | F149: 0 | G149: 1 | H149: 143
A150: 144 | F150: 0 | G150: 1 | H150: 144
A151: 145 | F151: 0 | G151: 1 | H151: 145
A152: 146 | F152: 0 | G152: 1 | H152: 146
A153: 147 | F153: 0 | G153: 1 | H153: 147
A154: 148 | F154: 0 | G154: 1 | H154: 148
A155: 149 | F155: 0 | G155: 1 | H155: 149
A156: 150 | F156: 0 | G156: 1 | H156: 150
A157: 151 | F157: 0 | G157: 1 | H157: 151
A158: 152 | F158: 0 | G158: 1 | H158: 152
A159: 153 | F159: 0 | G159: 1 | H159: 153
A160: 154 | F160: 0 | G160: 1 | H160: 154
A161: 155 | F161: 0 | G161: 1 | H161: 155
A162: 156 | F162: 0 | G162: 1 | H162: 156
A163: 157 | F163: 0 | G163: 1 | H163: 157
A164: 158 | F164: 0 | G164: 1 | H164: 158
A165: 159 | F165: 0 | G165: 1 | H165: 159
A166: 160 | F166: 0 | G166: 1 | H166: 160
A167: 161 | F167: 0 | G167: 1 | H167: 161
A168: 162 | F168: 0 | G168: 1 | H168: 162
A169: 163 | F169: 0 | G169: 1 | H169: 163
A170: 164 | F170: 0 | G170: 1 | H170: 164
A171: 165 | F171: 0 | G171: 1 | H171: 165
A172: 166 | F172: 0 | G172: 1 | H172: 166
A173: 167 | F173: 0 | G173: 1 | H173: 167
A174: 168 | F174: 0 | G174: 1 | H174: 168
A175: 169 | F175: 0 | G175: 1 | H175: 169
A176: 170 | F176: 0 | G176: 1 | H176: 170
A177: 171 | F177: 0 | G177: 1 | H177: 171
A178: 172 | F178: 0 | G178: 1 | H178: 172
A179: 173 | F179: 0 | G179: 1 | H179: 173
A180: 174 | F180: 0 | G180: 1 | H180: 174
A181: 175 | F181: 0 | G181: 1 | H181: 175
A182: 176 | F182: 0 | G182: 1 | H182: 176
A183: 177 | F183: 0 | G183: 1 | H183: 177
A184: 178 | F184: 0 | G184: 1 | H184: 178
A185: 179 | F185: 0 | G185: 1 | H185: 179
A186: 180 | F186: 0 | G186: 1 | H186: 180
A187: 181 | F187: 0 | G187: 1 | H187: 181
A188: 182 | F188: 0 | G188: 1 | H188: 182
A189: 183 | F189: 0 | G189: 1 | H189: 183
A190: 184 | F190: 0 | G190: 1 | H190: 184
A191: 185 | F191: 0 | G191: 1 | H191: 185
A192: 186 | F192: 0 | G192: 1 | H192: 186
A193: 187 | F193: 0 | G193: 1 | H193: 187
A194: 188 | F194: 0 | G194: 1 | H194: 188
A195: 189 | F195: 0 | G195: 1 | H195: 189
A196: 190 | F196: 0 | G196: 1 | H196: 190
A197: 191 | F197: 0 | G197: 1 | H197: 191
A198: 192 | F198: 0 | G198: 1 | H198: 192
A199: 193 | F199: 0 | G199: 1 | H199: 193
A200: 194 | F200: 0 | G200: 1 | H200: =A200 -> 194
A201: =1+A200 -> 195 | F201: 0 | G201: 1 | H201: 195
A202: 196 | F202: 0 | G202: 1 | H202: 196
A203: 197 | F203: 0 | G203: =IF($A$5>A203,0,IF(A203>$A$6,1,(F203+1)/$H$5+G202)) -> 1 | H203: 197
... 2811 more rows

Sheet Set B
A4: 2999 | H4: Range Sum
A5: =IF(ISNUMBER(Select!E7),IF(Select!E7>1,IF(Select!E7>A4,1,IF(Select!E8<=Select!E7,1,Select!E7)),1),1) -> 1 | B5: =Drill!M3 -> Persian | C5: =Drill!M4 -> English | D5: =Drill!M3&" Hints" -> Persian Hints | E5: =Drill!M4&" Hints" -> English Hints | F5: Delta | G5: Range Cum. | H5: =SUM(OFFSET(Adjusts3,A5-1,0,A6-A5+1,1))+A6-A5+1 -> 10 | M5: =Drill!M5 -> Character: | N5: =Drill!N5 -> 0 | O5: =Drill!O5 -> ئ | P5: =Drill!P5 -> è | Q5: =Drill!Q5 -> ì | R5: =Drill!R5 -> ò | S5: =Drill!S5 -> ù | T5: =Drill!T5 -> 6 | U5: =Drill!U5 -> 7 | V5: =Drill!V5 -> 8 | W5: =Drill!W5 -> 9 | X5: =Drill!X5 -> à | Y5: =Drill!Y5 -> è | Z5: =Drill!Z5 -> ì | AA5: =Drill!AA5 -> ò | AB5: =Drill!AB5 -> ù | AC5: =Drill!AC5 -> 6 | AD5: =Drill!AD5 -> 7 | AE5: =Drill!AE5 -> 8 | AF5: =Drill!AF5 -> 9 | AG5: =Drill!AG5 -> à | AH5: =Drill!AH5 -> è | AI5: =Drill!AI5 -> ì | AJ5: =Drill!AJ5 -> ò | AK5: =Drill!AK5 -> ù | AL5: =Drill!AL5 -> 6 | AM5: =Drill!AM5 -> 7 | AN5: =Drill!AN5 -> 8 | AO5: =Drill!AO5 -> 9 | AP5: =Drill!AP5 -> à | AQ5: =Drill!AQ5 -> è | AR5: =Drill!AR5 -> í | AS5: =Drill!AS5 -> ò | AT5: =Drill!AT5 -> ù | AU5: =Drill!AU5 -> 6 | AV5: =Drill!AV5 -> 7 | AW5: =Drill!AW5 -> 8 | AX5: =Drill!AX5 -> 9
A6: =IF(ISNUMBER(Select!E8),IF(Select!E8>A4,B6,IF(Select!E8<=A5,B6,IF(Select!E8>B6,B6,Select!E8))),B6) -> 10 | B6: =A4-COUNTBLANK(B7:B3005) -> 10 | F6: Add to 100% | G6: 0 | H6: 0 | M6: =Drill!M6 -> Code: | N6: =Drill!N6 -> 0 | O6: =Drill!O6 -> 1 | P6: =Drill!P6 -> 2 | Q6: =Drill!Q6 -> 3 | R6: =Drill!R6 -> 4 | S6: =Drill!S6 -> 5 | T6: =Drill!T6 -> 6 | U6: =Drill!U6 -> 7 | V6: =Drill!V6 -> 8 | W6: =Drill!W6 -> 9 | X6: =Drill!X6 -> 1 | Y6: =Drill!Y6 -> 2 | Z6: =Drill!Z6 -> 3 | AA6: =Drill!AA6 -> 4 | AB6: =Drill!AB6 -> 5 | AC6: =Drill!AC6 -> 6 | AD6: =Drill!AD6 -> 7 | AE6: =Drill!AE6 -> 8 | AF6: =Drill!AF6 -> 9 | AG6: =Drill!AG6 -> 1 | AH6: =Drill!AH6 -> 2 | AI6: =Drill!AI6 -> 3 | AJ6: =Drill!AJ6 -> 4 | AK6: =Drill!AK6 -> 5 | AL6: =Drill!AL6 -> 6 | AM6: =Drill!AM6 -> 7 | AN6: =Drill!AN6 -> 8 | AO6: =Drill!AO6 -> 9 | AP6: =Drill!AP6 -> 1 | AQ6: =Drill!AQ6 -> 2 | AR6: =Drill!AR6 -> 3 | AS6: =Drill!AS6 -> 4 | AT6: =Drill!AT6 -> 5 | AU6: =Drill!AU6 -> 6 | AV6: =Drill!AV6 -> ~ | AW6: =Drill!AW6 -> ~ | AX6: =Drill!AX6 -> ~
A7: =1 -> 1 | B7: صبح بخیر | C7: good morning | F7: 0 | G7: =IF(OR($A$5>A7,A7>$A$6),0,(F7+1)/$H$5+G6) -> 0.1 | H7: =A7 -> 1
A8: =1+A7 -> 2 | B8: بعد از ظهر بخیر | C8: good afternoon | F8: 0 | G8: =IF(OR($A$5>A8,A8>$A$6),0,(F8+1)/$H$5+G7) -> 0.2 | H8: =A8 -> 2
A9: =1+A8 -> 3 | B9: شب بخیر | C9: good night | F9: 0 | G9: =IF(OR($A$5>A9,A9>$A$6),0,(F9+1)/$H$5+G8) -> 0.3 | H9: 3 | M9: =Drill!M9 -> Step trans: | N9: 123 | O9: =IF(ISERR(FIND(O6,N9)),N9,LEFT(N9,FIND(O6,N9)-1)&O5&MID(N9,FIND(O6,N9)+1,LEN(N9))) -> ئ23 | P9: =IF(ISERR(FIND(P6,O9)),O9,LEFT(O9,FIND(P6,O9)-1)&P5&MID(O9,FIND(P6,O9)+1,LEN(O9))) -> ئè3 | Q9: ئèì | R9: ئèì | S9: ئèì | T9: ئèì | U9: ئèì | V9: ئèì | W9: ئèì | X9: ئèì | Y9: ئèì | Z9: ئèì | AA9: ئèì | AB9: ئèì | AC9: ئèì | AD9: ئèì | AE9: ئèì | AF9: ئèì | AG9: ئèì | AH9: ئèì | AI9: ئèì | AJ9: ئèì | AK9: ئèì | AL9: ئèì | AM9: ئèì | AN9: ئèì | AO9: ئèì | AP9: ئèì | AQ9: ئèì | AR9: ئèì | AS9: ئèì | AT9: ئèì | AU9: ئèì | AV9: ئèì | AW9: ئèì | AX9: ئèì
A10: 4 | B10: عصر بخیر | C10: good evening | F10: 0 | G10: =IF($A$5>A10,0,IF(A10>$A$6,1,(F10+1)/$H$5+G9)) -> 0.4 | H10: 4 | M10: =Drill!M10 -> W/char: | N10: =IF(N9=0,"",IF(AX9=0,"",AX9)) -> ئèì
A11: 5 | B11: خدا حافض | C11: goodbye | F11: 0 | G11: =IF($A$5>A11,0,IF(A11>$A$6,1,(F11+1)/$H$5+G10)) -> 0.5 | H11: 5
A12: 6 | B12: خواهش می کنم | C12: you're welcome | F12: 0 | G12: 0.6 | H12: 6
A13: 7 | B13: متشکرم | C13: thank you | F13: 0 | G13: 0.7 | H13: 7
A14: 8 | B14: ماندن | C14: to stay | F14: 0 | G14: 0.8 | H14: 8
A15: 9 | B15: جدی | C15: really | D15: seriously! | F15: 0 | G15: 0.9 | H15: 9
A16: 10 | B16: خد | C16: working hard | F16: 0 | G16: 1 | H16: 10
A17: 11 | F17: 0 | G17: 1 | H17: 11
A18: 12 | F18: 0 | G18: 1 | H18: 12
A19: 13 | F19: 0 | G19: 1 | H19: 13
A20: 14 | F20: 0 | G20: 1 | H20: 14
A21: 15 | F21: 0 | G21: 1 | H21: 15
A22: 16 | F22: 0 | G22: 1 | H22: 16
A23: 17 | F23: 0 | G23: 1 | H23: 17
A24: 18 | F24: 0 | G24: 1 | H24: 18
A25: 19 | F25: 0 | G25: 1 | H25: 19
A26: 20 | F26: 0 | G26: 1 | H26: 20
A27: 21 | F27: 0 | G27: 1 | H27: 21
A28: 22 | F28: 0 | G28: 1 | H28: 22
A29: 23 | F29: 0 | G29: 1 | H29: 23
A30: 24 | F30: 0 | G30: 1 | H30: 24
A31: 25 | F31: 0 | G31: 1 | H31: 25
A32: 26 | F32: 0 | G32: 1 | H32: 26
A33: 27 | F33: 0 | G33: 1 | H33: 27
A34: 28 | F34: 0 | G34: 1 | H34: 28
A35: 29 | F35: 0 | G35: 1 | H35: 29
A36: 30 | F36: 0 | G36: 1 | H36: 30
A37: 31 | F37: 0 | G37: 1 | H37: 31
A38: 32 | F38: 0 | G38: 1 | H38: 32
A39: 33 | F39: 0 | G39: 1 | H39: 33
A40: 34 | F40: 0 | G40: 1 | H40: 34
A41: 35 | F41: 0 | G41: 1 | H41: 35
A42: 36 | F42: 0 | G42: 1 | H42: 36
A43: 37 | F43: 0 | G43: 1 | H43: 37
A44: 38 | F44: 0 | G44: 1 | H44: 38
A45: 39 | F45: 0 | G45: 1 | H45: 39
A46: 40 | F46: 0 | G46: 1 | H46: 40
A47: 41 | F47: 0 | G47: 1 | H47: 41
A48: 42 | F48: 0 | G48: 1 | H48: 42
A49: 43 | F49: 0 | G49: 1 | H49: 43
A50: 44 | F50: 0 | G50: 1 | H50: 44
A51: 45 | F51: 0 | G51: 1 | H51: 45
A52: 46 | F52: 0 | G52: 1 | H52: 46
A53: 47 | F53: 0 | G53: 1 | H53: 47
A54: 48 | F54: 0 | G54: 1 | H54: 48
A55: 49 | F55: 0 | G55: 1 | H55: 49
A56: 50 | F56: 0 | G56: 1 | H56: 50
A57: 51 | F57: 0 | G57: 1 | H57: 51
A58: 52 | F58: 0 | G58: 1 | H58: 52
A59: 53 | F59: 0 | G59: 1 | H59: 53
A60: 54 | F60: 0 | G60: 1 | H60: 54
A61: 55 | F61: 0 | G61: 1 | H61: 55
A62: 56 | F62: 0 | G62: 1 | H62: 56
A63: 57 | F63: 0 | G63: 1 | H63: 57
A64: 58 | F64: 0 | G64: 1 | H64: 58
A65: 59 | F65: 0 | G65: 1 | H65: 59
A66: 60 | F66: 0 | G66: 1 | H66: 60
A67: 61 | F67: 0 | G67: 1 | H67: 61
A68: 62 | F68: 0 | G68: 1 | H68: 62
A69: 63 | F69: 0 | G69: 1 | H69: 63
A70: 64 | F70: 0 | G70: 1 | H70: 64
A71: 65 | F71: 0 | G71: 1 | H71: 65
A72: 66 | F72: 0 | G72: 1 | H72: =A72 -> 66
A73: =1+A72 -> 67 | F73: 0 | G73: 1 | H73: 67
A74: 68 | F74: 0 | G74: 1 | H74: 68
A75: 69 | F75: 0 | G75: =IF($A$5>A75,0,IF(A75>$A$6,1,(F75+1)/$H$5+G74)) -> 1 | H75: 69
A76: 70 | F76: 0 | G76: 1 | H76: 70
A77: 71 | F77: 0 | G77: 1 | H77: 71
A78: 72 | F78: 0 | G78: 1 | H78: 72
A79: 73 | F79: 0 | G79: 1 | H79: 73
A80: 74 | F80: 0 | G80: 1 | H80: 74
A81: 75 | F81: 0 | G81: 1 | H81: 75
A82: 76 | F82: 0 | G82: 1 | H82: 76
A83: 77 | F83: 0 | G83: 1 | H83: 77
A84: 78 | F84: 0 | G84: 1 | H84: 78
A85: 79 | F85: 0 | G85: 1 | H85: 79
A86: 80 | F86: 0 | G86: 1 | H86: 80
A87: 81 | F87: 0 | G87: 1 | H87: 81
A88: 82 | F88: 0 | G88: 1 | H88: 82
A89: 83 | F89: 0 | G89: 1 | H89: 83
A90: 84 | F90: 0 | G90: 1 | H90: 84
A91: 85 | F91: 0 | G91: 1 | H91: 85
A92: 86 | F92: 0 | G92: 1 | H92: 86
A93: 87 | F93: 0 | G93: 1 | H93: 87
A94: 88 | F94: 0 | G94: 1 | H94: 88
A95: 89 | F95: 0 | G95: 1 | H95: 89
A96: 90 | F96: 0 | G96: 1 | H96: 90
A97: 91 | F97: 0 | G97: 1 | H97: 91
A98: 92 | F98: 0 | G98: 1 | H98: 92
A99: 93 | F99: 0 | G99: 1 | H99: 93
A100: 94 | F100: 0 | G100: 1 | H100: 94
A101: 95 | F101: 0 | G101: 1 | H101: 95
A102: 96 | F102: 0 | G102: 1 | H102: 96
A103: 97 | F103: 0 | G103: 1 | H103: 97
A104: 98 | F104: 0 | G104: 1 | H104: 98
A105: 99 | F105: 0 | G105: 1 | H105: 99
A106: 100 | F106: 0 | G106: 1 | H106: 100
A107: 101 | F107: 0 | G107: 1 | H107: 101
A108: 102 | F108: 0 | G108: 1 | H108: 102
A109: 103 | F109: 0 | G109: 1 | H109: 103
A110: 104 | F110: 0 | G110: 1 | H110: 104
A111: 105 | F111: 0 | G111: 1 | H111: 105
A112: 106 | F112: 0 | G112: 1 | H112: 106
A113: 107 | F113: 0 | G113: 1 | H113: 107
A114: 108 | F114: 0 | G114: 1 | H114: 108
A115: 109 | F115: 0 | G115: 1 | H115: 109
A116: 110 | F116: 0 | G116: 1 | H116: 110
A117: 111 | F117: 0 | G117: 1 | H117: 111
A118: 112 | F118: 0 | G118: 1 | H118: 112
A119: 113 | F119: 0 | G119: 1 | H119: 113
A120: 114 | F120: 0 | G120: 1 | H120: 114
A121: 115 | F121: 0 | G121: 1 | H121: 115
A122: 116 | F122: 0 | G122: 1 | H122: 116
A123: 117 | F123: 0 | G123: 1 | H123: 117
A124: 118 | F124: 0 | G124: 1 | H124: 118
A125: 119 | F125: 0 | G125: 1 | H125: 119
A126: 120 | F126: 0 | G126: 1 | H126: 120
A127: 121 | F127: 0 | G127: 1 | H127: 121
A128: 122 | F128: 0 | G128: 1 | H128: 122
A129: 123 | F129: 0 | G129: 1 | H129: 123
A130: 124 | F130: 0 | G130: 1 | H130: 124
A131: 125 | F131: 0 | G131: 1 | H131: 125
A132: 126 | F132: 0 | G132: 1 | H132: 126
A133: 127 | F133: 0 | G133: 1 | H133: 127
A134: 128 | F134: 0 | G134: 1 | H134: 128
A135: 129 | F135: 0 | G135: 1 | H135: 129
A136: 130 | F136: 0 | G136: 1 | H136: =A136 -> 130
A137: =1+A136 -> 131 | F137: 0 | G137: 1 | H137: 131
A138: 132 | F138: 0 | G138: 1 | H138: 132
A139: 133 | F139: 0 | G139: =IF($A$5>A139,0,IF(A139>$A$6,1,(F139+1)/$H$5+G138)) -> 1 | H139: 133
A140: 134 | F140: 0 | G140: 1 | H140: 134
A141: 135 | F141: 0 | G141: 1 | H141: 135
A142: 136 | F142: 0 | G142: 1 | H142: 136
A143: 137 | F143: 0 | G143: 1 | H143: 137
A144: 138 | F144: 0 | G144: 1 | H144: 138
A145: 139 | F145: 0 | G145: 1 | H145: 139
A146: 140 | F146: 0 | G146: 1 | H146: 140
A147: 141 | F147: 0 | G147: 1 | H147: 141
A148: 142 | F148: 0 | G148: 1 | H148: 142
A149: 143 | F149: 0 | G149: 1 | H149: 143
A150: 144 | F150: 0 | G150: 1 | H150: 144
A151: 145 | F151: 0 | G151: 1 | H151: 145
A152: 146 | F152: 0 | G152: 1 | H152: 146
A153: 147 | F153: 0 | G153: 1 | H153: 147
A154: 148 | F154: 0 | G154: 1 | H154: 148
A155: 149 | F155: 0 | G155: 1 | H155: 149
A156: 150 | F156: 0 | G156: 1 | H156: 150
A157: 151 | F157: 0 | G157: 1 | H157: 151
A158: 152 | F158: 0 | G158: 1 | H158: 152
A159: 153 | F159: 0 | G159: 1 | H159: 153
A160: 154 | F160: 0 | G160: 1 | H160: 154
A161: 155 | F161: 0 | G161: 1 | H161: 155
A162: 156 | F162: 0 | G162: 1 | H162: 156
A163: 157 | F163: 0 | G163: 1 | H163: 157
A164: 158 | F164: 0 | G164: 1 | H164: 158
A165: 159 | F165: 0 | G165: 1 | H165: 159
A166: 160 | F166: 0 | G166: 1 | H166: 160
A167: 161 | F167: 0 | G167: 1 | H167: 161
A168: 162 | F168: 0 | G168: 1 | H168: 162
A169: 163 | F169: 0 | G169: 1 | H169: 163
A170: 164 | F170: 0 | G170: 1 | H170: 164
A171: 165 | F171: 0 | G171: 1 | H171: 165
A172: 166 | F172: 0 | G172: 1 | H172: 166
A173: 167 | F173: 0 | G173: 1 | H173: 167
A174: 168 | F174: 0 | G174: 1 | H174: 168
A175: 169 | F175: 0 | G175: 1 | H175: 169
A176: 170 | F176: 0 | G176: 1 | H176: 170
A177: 171 | F177: 0 | G177: 1 | H177: 171
A178: 172 | F178: 0 | G178: 1 | H178: 172
A179: 173 | F179: 0 | G179: 1 | H179: 173
A180: 174 | F180: 0 | G180: 1 | H180: 174
A181: 175 | F181: 0 | G181: 1 | H181: 175
A182: 176 | F182: 0 | G182: 1 | H182: 176
A183: 177 | F183: 0 | G183: 1 | H183: 177
A184: 178 | F184: 0 | G184: 1 | H184: 178
A185: 179 | F185: 0 | G185: 1 | H185: 179
A186: 180 | F186: 0 | G186: 1 | H186: 180
A187: 181 | F187: 0 | G187: 1 | H187: 181
A188: 182 | F188: 0 | G188: 1 | H188: 182
A189: 183 | F189: 0 | G189: 1 | H189: 183
A190: 184 | F190: 0 | G190: 1 | H190: 184
A191: 185 | F191: 0 | G191: 1 | H191: 185
A192: 186 | F192: 0 | G192: 1 | H192: 186
A193: 187 | F193: 0 | G193: 1 | H193: 187
A194: 188 | F194: 0 | G194: 1 | H194: 188
A195: 189 | F195: 0 | G195: 1 | H195: 189
A196: 190 | F196: 0 | G196: 1 | H196: 190
A197: 191 | F197: 0 | G197: 1 | H197: 191
A198: 192 | F198: 0 | G198: 1 | H198: 192
A199: 193 | F199: 0 | G199: 1 | H199: 193
A200: 194 | F200: 0 | G200: 1 | H200: =A200 -> 194
A201: =1+A200 -> 195 | F201: 0 | G201: 1 | H201: 195
A202: 196 | F202: 0 | G202: 1 | H202: 196
A203: 197 | F203: 0 | G203: =IF($A$5>A203,0,IF(A203>$A$6,1,(F203+1)/$H$5+G202)) -> 1 | H203: 197
... 2806 more rows

Sheet Set C
A4: 2999 | H4: Range Sum
A5: =IF(ISNUMBER(Select!E7),IF(Select!E7>1,IF(Select!E7>A4,1,IF(Select!E8<=Select!E7,1,Select!E7)),1),1) -> 1 | B5: =Drill!M3 -> Persian | C5: =Drill!M4 -> English | D5: =Drill!M3&" Hints" -> Persian Hints | E5: =Drill!M4&" Hints" -> English Hints | F5: Delta | G5: Range Cum. | H5: =SUM(OFFSET(Adjusts4,A5-1,0,A6-A5+1,1))+A6-A5+1 -> 25 | M5: =Drill!M5 -> Character: | N5: =Drill!N5 -> 0 | O5: =Drill!O5 -> ئ | P5: =Drill!P5 -> è | Q5: =Drill!Q5 -> ì | R5: =Drill!R5 -> ò | S5: =Drill!S5 -> ù | T5: =Drill!T5 -> 6 | U5: =Drill!U5 -> 7 | V5: =Drill!V5 -> 8 | W5: =Drill!W5 -> 9 | X5: =Drill!X5 -> à | Y5: =Drill!Y5 -> è | Z5: =Drill!Z5 -> ì | AA5: =Drill!AA5 -> ò | AB5: =Drill!AB5 -> ù | AC5: =Drill!AC5 -> 6 | AD5: =Drill!AD5 -> 7 | AE5: =Drill!AE5 -> 8 | AF5: =Drill!AF5 -> 9 | AG5: =Drill!AG5 -> à | AH5: =Drill!AH5 -> è | AI5: =Drill!AI5 -> ì | AJ5: =Drill!AJ5 -> ò | AK5: =Drill!AK5 -> ù | AL5: =Drill!AL5 -> 6 | AM5: =Drill!AM5 -> 7 | AN5: =Drill!AN5 -> 8 | AO5: =Drill!AO5 -> 9 | AP5: =Drill!AP5 -> à | AQ5: =Drill!AQ5 -> è | AR5: =Drill!AR5 -> í | AS5: =Drill!AS5 -> ò | AT5: =Drill!AT5 -> ù | AU5: =Drill!AU5 -> 6 | AV5: =Drill!AV5 -> 7 | AW5: =Drill!AW5 -> 8 | AX5: =Drill!AX5 -> 9
A6: =IF(ISNUMBER(Select!E8),IF(Select!E8>A4,B6,IF(Select!E8<=A5,B6,IF(Select!E8>B6,B6,Select!E8))),B6) -> 25 | B6: =A4-COUNTBLANK(B7:B3005) -> 385 | F6: Add to 100% | G6: 0 | H6: 0 | M6: =Drill!M6 -> Code: | N6: =Drill!N6 -> 0 | O6: =Drill!O6 -> 1 | P6: =Drill!P6 -> 2 | Q6: =Drill!Q6 -> 3 | R6: =Drill!R6 -> 4 | S6: =Drill!S6 -> 5 | T6: =Drill!T6 -> 6 | U6: =Drill!U6 -> 7 | V6: =Drill!V6 -> 8 | W6: =Drill!W6 -> 9 | X6: =Drill!X6 -> 1 | Y6: =Drill!Y6 -> 2 | Z6: =Drill!Z6 -> 3 | AA6: =Drill!AA6 -> 4 | AB6: =Drill!AB6 -> 5 | AC6: =Drill!AC6 -> 6 | AD6: =Drill!AD6 -> 7 | AE6: =Drill!AE6 -> 8 | AF6: =Drill!AF6 -> 9 | AG6: =Drill!AG6 -> 1 | AH6: =Drill!AH6 -> 2 | AI6: =Drill!AI6 -> 3 | AJ6: =Drill!AJ6 -> 4 | AK6: =Drill!AK6 -> 5 | AL6: =Drill!AL6 -> 6 | AM6: =Drill!AM6 -> 7 | AN6: =Drill!AN6 -> 8 | AO6: =Drill!AO6 -> 9 | AP6: =Drill!AP6 -> 1 | AQ6: =Drill!AQ6 -> 2 | AR6: =Drill!AR6 -> 3 | AS6: =Drill!AS6 -> 4 | AT6: =Drill!AT6 -> 5 | AU6: =Drill!AU6 -> 6 | AV6: =Drill!AV6 -> ~ | AW6: =Drill!AW6 -> ~ | AX6: =Drill!AX6 -> ~
A7: =1 -> 1 | B7: بنا | C7: a builder | F7: 0 | G7: =IF(OR($A$5>A7,A7>$A$6),0,(F7+1)/$H$5+G6) -> 0.04 | H7: =A7 -> 1
A8: =1+A7 -> 2 | B8: سن | C8: age | F8: 0 | G8: =IF(OR($A$5>A8,A8>$A$6),0,(F8+1)/$H$5+G7) -> 0.08 | H8: =A8 -> 2
A9: =1+A8 -> 3 | B9: بس | C9: enough | F9: 0 | G9: =IF(OR($A$5>A9,A9>$A$6),0,(F9+1)/$H$5+G8) -> 0.12 | H9: 3 | M9: =Drill!M9 -> Step trans: | N9: 1 | O9: =IF(ISERR(FIND(O6,N9)),N9,LEFT(N9,FIND(O6,N9)-1)&O5&MID(N9,FIND(O6,N9)+1,LEN(N9))) -> ئ | P9: =IF(ISERR(FIND(P6,O9)),O9,LEFT(O9,FIND(P6,O9)-1)&P5&MID(O9,FIND(P6,O9)+1,LEN(O9))) -> ئ | Q9: ئ | R9: ئ | S9: ئ | T9: ئ | U9: ئ | V9: ئ | W9: ئ | X9: ئ | Y9: ئ | Z9: ئ | AA9: ئ | AB9: ئ | AC9: ئ | AD9: ئ | AE9: ئ | AF9: ئ | AG9: ئ | AH9: ئ | AI9: ئ | AJ9: ئ | AK9: ئ | AL9: ئ | AM9: ئ | AN9: ئ | AO9: ئ | AP9: ئ | AQ9: ئ | AR9: ئ | AS9: ئ | AT9: ئ | AU9: ئ | AV9: ئ | AW9: ئ | AX9: ئ
A10: 4 | B10: دم | C10: tail | F10: 0 | G10: =IF($A$5>A10,0,IF(A10>$A$6,1,(F10+1)/$H$5+G9)) -> 0.16 | H10: 4 | M10: =Drill!M10 -> W/char: | N10: =IF(N9=0,"",IF(AX9=0,"",AX9)) -> ئ
A11: 5 | B11: تا | C11: as far as, until | F11: 0 | G11: =IF($A$5>A11,0,IF(A11>$A$6,1,(F11+1)/$H$5+G10)) -> 0.2 | H11: 5
A12: 6 | B12: زر | C12: gold | F12: 0 | G12: 0.24 | H12: 6
A13: 7 | B13: هر چیز | C13: everything | F13: 0 | G13: 0.28 | H13: 7
A14: 8 | B14: شیشه | C14: glass | F14: 0 | G14: 0.32 | H14: 8
A15: 9 | B15: پیچ | C15: screw | F15: 0 | G15: 0.36 | H15: 9
A16: 10 | B16: پس | C16: then | F16: 0 | G16: 0.4 | H16: 10
A17: 11 | B17: آداب | C17: customs; traditions | F17: 0 | G17: 0.44 | H17: 11
A18: 12 | B18: آرزو داشتن | C18: to wish | F18: 0 | G18: 0.48 | H18: 12
A19: 13 | B19: آسایش | C19: comfort | F19: 0 | G19: 0.52 | H19: 13
A20: 14 | B20: آشنا | C20: acquaintance | F20: 0 | G20: 0.56 | H20: 14
A21: 15 | B21: بهانه | C21: excuse | F21: 0 | G21: 0.6 | H21: 15
A22: 16 | B22: آماده کردن | C22: to prepare | D22: Ahm… | F22: 0 | G22: 0.64 | H22: 16
A23: 17 | B23: مالیدن | C23: to rub | F23: 0 | G23: 0.68 | H23: 17
A24: 18 | B24: فراوان | C24: plenty | F24: 0 | G24: 0.72 | H24: 18
A25: 19 | B25: چیدن | C25: to cut, to arrange | F25: 0 | G25: 0.76 | H25: 19
A26: 20 | B26: رشد کردن | C26: to grow | F26: 0 | G26: 0.8 | H26: 20
A27: 21 | B27: استفاده کردن | C27: to use | F27: 0 | G27: 0.84 | H27: 21
A28: 22 | B28: اضافه کردن | C28: to add | F28: 0 | G28: 0.88 | H28: 22
A29: 23 | B29: اطلاعات | C29: information | F29: 0 | G29: 0.92 | H29: 23
A30: 24 | B30: اطمینان کردن به | C30: to trust | F30: 0 | G30: 0.96 | H30: 24
A31: 25 | B31: انتخاب کردن | C31: to choose | F31: 0 | G31: 1 | H31: 25
A32: 26 | B32: تغییر | C32: change | F32: 0 | G32: 1 | H32: 26
A33: 27 | B33: بقیه | C33: remainder, rest | F33: 0 | G33: 1 | H33: 27
A34: 28 | B34: باعث | C34: cause, reason | F34: 0 | G34: 1 | H34: 28
A35: 29 | B35: سبب | C35: reason | F35: 0 | G35: 1 | H35: 29
A36: 30 | B36: می آمیزم | C36: I mix | F36: 0 | G36: 1 | H36: 30
A37: 31 | B37: معمولاً | C37: generally | F37: 0 | G37: 1 | H37: 31
A38: 32 | B38: دست بر داشتن | C38: to let go | F38: 0 | G38: 1 | H38: 32
A39: 33 | B39: پشیمان شدن | C39: to be remorseful, to regret | F39: 0 | G39: 1 | H39: 33
A40: 34 | B40: مواظب بودن | C40: to be careful | F40: 0 | G40: 1 | H40: 34
A41: 35 | B41: قایم کردن | C41: to hide | F41: 0 | G41: 1 | H41: 35
A42: 36 | B42: فعلاً | C42: at the moment, currently | F42: 0 | G42: 1 | H42: 36
A43: 37 | B43: به ندرت | C43: rarely | F43: 0 | G43: 1 | H43: 37
A44: 38 | B44: منتظر بودن | C44: to be waiting | F44: 0 | G44: 1 | H44: 38
A45: 39 | B45: تعریف کردن | C45: to describe, to tell | F45: 0 | G45: 1 | H45: 39
A46: 40 | B46: ادامه دادن | C46: to continue | F46: 0 | G46: 1 | H46: 40
A47: 41 | B47: مجبور کردن | C47: to force | F47: 0 | G47: 1 | H47: 41
A48: 42 | B48: توجه کردن | C48: to pay attention | F48: 0 | G48: 1 | H48: 42
A49: 43 | B49: گول زدن | C49: to deceive | F49: 0 | G49: 1 | H49: 43
A50: 44 | B50: نمایان | C50: visible | F50: 0 | G50: 1 | H50: 44
A51: 45 | B51: میانگین | C51: average | F51: 0 | G51: 1 | H51: 45
A52: 46 | B52: انجام دادن | C52: to carry out, to perform | F52: 0 | G52: 1 | H52: 46
A53: 47 | B53: چنین | C53: like this | F53: 0 | G53: 1 | H53: 47
A54: 48 | B54: گذراندن | C54: to spend time, pass time | F54: 0 | G54: 1 | H54: 48
A55: 49 | B55: انگاشتن | C55: to consider, suppose | F55: 0 | G55: 1 | H55: 49
A56: 50 | B56: پنداشتن | C56: to consider, reflect | F56: 0 | G56: 1 | H56: 50
A57: 51 | B57: کاشتن | C57: to sow, cultivate | F57: 0 | G57: 1 | H57: 51
A58: 52 | B58: تعجب کردن | C58: to surprise | F58: 0 | G58: 1 | H58: 52
A59: 53 | B59: دنبال کردن | C59: to follow | F59: 0 | G59: 1 | H59: 53
A60: 54 | B60: دراز کشیدن | C60: to lie down | F60: 0 | G60: 1 | H60: 54
A61: 55 | B61: قبول کردن | C61: to accept, agree | F61: 0 | G61: 1 | H61: 55
A62: 56 | B62: غروب آفتاب | C62: sunset | F62: 0 | G62: 1 | H62: 56
A63: 57 | B63: پایان | C63: end | F63: 0 | G63: 1 | H63: 57
A64: 58 | B64: پایان رسیدن | C64: to end | F64: 0 | G64: 1 | H64: 58
A65: 59 | B65: منتظر بودن | C65: to be waiting | F65: 0 | G65: 1 | H65: 59
A66: 60 | B66: صدا | C66: sound | F66: 0 | G66: 1 | H66: 60
A67: 61 | B67: ماجرا | C67: happening, story | F67: 0 | G67: 1 | H67: 61
A68: 62 | B68: تعریف کردن | C68: to describe, to tell | F68: 0 | G68: 1 | H68: 62
A69: 63 | B69: چرخیدن | C69: to turn | F69: 0 | G69: 1 | H69: 63
A70: 64 | B70: دور | C70: around | F70: 0 | G70: 1 | H70: 64
A71: 65 | B71: دور | C71: far | F71: 0 | G71: 1 | H71: 65
A72: 66 | B72: لانه | C72: nest | F72: 0 | G72: 1 | H72: =A72 -> 66
A73: =1+A72 -> 67 | B73: بهانه | C73: excuse | F73: 0 | G73: 1 | H73: 67
A74: 68 | B74: بهانه آوردن | C74: to make excuses | F74: 0 | G74: 1 | H74: 68
A75: 69 | B75: دست بر داشتن | C75: to let go | F75: 0 | G75: =IF($A$5>A75,0,IF(A75>$A$6,1,(F75+1)/$H$5+G74)) -> 1 | H75: 69
A76: 70 | B76: پشیمان شدن | C76: to be remorseful, to regret | F76: 0 | G76: 1 | H76: 70
A77: 71 | B77: خمیازه کشیدن | C77: to yawn | F77: 0 | G77: 1 | H77: 71
A78: 72 | B78: گذاشتن | C78: to leave, to put | F78: 0 | G78: 1 | H78: 72
A79: 73 | B79: گذاشتن | C79: to allow | F79: 0 | G79: 1 | H79: 73
A80: 74 | B80: ادامه دادن | C80: to continue | F80: 0 | G80: 1 | H80: 74
A81: 75 | B81: نسیم | C81: breeze | F81: 0 | G81: 1 | H81: 75
A82: 76 | B82: شنیدن | C82: to hear | F82: 0 | G82: 1 | H82: 76
A83: 77 | B83: کشاورزی | C83: farming | F83: 0 | G83: 1 | H83: 77
A84: 78 | B84: شریک | C84: shareholder, partner | F84: 0 | G84: 1 | H84: 78
A85: 79 | B85: شریکی | C85: in partnership | F85: 0 | G85: 1 | H85: 79
A86: 80 | B86: کاشتن | C86: to plant | F86: 0 | G86: 1 | H86: 80
A87: 81 | B87: زحمت کشیدن | C87: to work hard | F87: 0 | G87: 1 | H87: 81
A88: 82 | B88: تماشا کردن | C88: to watch | F88: 0 | G88: 1 | H88: 82
A89: 83 | B89: چغندر | C89: beet | F89: 0 | G89: 1 | H89: 83
A90: 84 | B90: آرزش | C90: value | F90: 0 | G90: 1 | H90: 84
A91: 85 | B91: برق زدن | C91: to shine | F91: 0 | G91: 1 | H91: 85
A92: 86 | B92: محکم | C92: firm | F92: 0 | G92: 1 | H92: 86
A93: 87 | B93: ترساندن | C93: to scare, to frighten | F93: 0 | G93: 1 | H93: 87
A94: 88 | B94: حوصله داشتن | C94: to be in the mood | F94: 0 | G94: 1 | H94: 88
A95: 89 | B95: جوانه | C95: bud | F95: 0 | G95: 1 | H95: 89
A96: 90 | B96: شاخه | C96: tree branch | F96: 0 | G96: 1 | H96: 90
A97: 91 | B97: صاحب | C97: owner | F97: 0 | G97: 1 | H97: 91
A98: 92 | B98: ایوان | C98: veranda | F98: 0 | G98: 1 | H98: 92
A99: 93 | B99: روشن کردن | C99: to turn on, to light | F99: 0 | G99: 1 | H99: 93
A100: 94 | B100: سینی | C100: tray | F100: 0 | G100: 1 | H100: 94
A101: 95 | B101: ظرف | C101: plate, dish, vessels | F101: 0 | G101: 1 | H101: 95
A102: 96 | B102: چرت زدن | C102: to nap | F102: 0 | G102: 1 | H102: 96
A103: 97 | B103: پلک | C103: eyelid | F103: 0 | G103: 1 | H103: 97
A104: 98 | B104: لبخند زدن | C104: to smile | F104: 0 | G104: 1 | H104: 98
A105: 99 | B105: مشت | C105: fist | F105: 0 | G105: 1 | H105: 99
A106: 100 | B106: حیاط | C106: courtyard | F106: 0 | G106: 1 | H106: 100
A107: 101 | B107: پند | C107: advice | F107: 0 | G107: 1 | H107: 101
A108: 102 | B108: گشودن | C108: to open | F108: 0 | G108: 1 | H108: 102
A109: 103 | B109: پشت سر هم | C109: one after another | F109: 0 | G109: 1 | H109: 103
A110: 104 | B110: آباد | C110: habitable; populated, flourishing | F110: 0 | G110: 1 | H110: 104
A111: 105 | B111: پیغام | C111: message | F111: 0 | G111: 1 | H111: 105
A112: 106 | B112: واقعیت | C112: fact | F112: 0 | G112: 1 | H112: 106
A113: 107 | B113: اصل | C113: origin | F113: 0 | G113: 1 | H113: 107
A114: 108 | B114: خصوصی | C114: private | F114: 0 | G114: 1 | H114: 108
A115: 109 | B115: پریشب | C115: the night before last | F115: 0 | G115: 1 | H115: 109
A116: 110 | B116: گلابی | C116: pear | F116: 0 | G116: 1 | H116: 110
A117: 111 | B117: کسی | C117: somebody | F117: 0 | G117: 1 | H117: 111
A118: 112 | B118: گچ | C118: plaster | F118: 0 | G118: 1 | H118: 112
A119: 113 | B119: هر گز | C119: never | F119: 0 | G119: 1 | H119: 113
A120: 114 | B120: خواهش | C120: a request | F120: 0 | G120: 1 | H120: 114
A121: 115 | B121: جمع | C121: total, sum | F121: 0 | G121: 1 | H121: 115
A122: 116 | B122: قبل از | C122: before | F122: 0 | G122: 1 | H122: 116
A123: 117 | B123: غیر از | C123: other than | F123: 0 | G123: 1 | H123: 117
A124: 118 | B124: کاغذ | C124: paper | F124: 0 | G124: 1 | H124: 118
A125: 119 | B125: بعضی | C125: some | F125: 0 | G125: 1 | H125: 119
A126: 120 | B126: ظهر | C126: noon | F126: 0 | G126: 1 | H126: 120
A127: 121 | B127: کثیف | C127: dirty | F127: 0 | G127: 1 | H127: 121
A128: 122 | B128: طرف | C128: direction | F128: 0 | G128: 1 | H128: 122
A129: 123 | B129: باطری | C129: battery | F129: 0 | G129: 1 | H129: 123
A130: 124 | B130: صبح | C130: morning | F130: 0 | G130: 1 | H130: 124
A131: 125 | B131: آباژور | C131: lampshade | F131: 0 | G131: 1 | H131: 125
A132: 126 | B132: آژانس | C132: agency | F132: 0 | G132: 1 | H132: 126
A133: 127 | B133: دفتر | C133: office | F133: 0 | G133: 1 | H133: 127
A134: 128 | B134: حمام | C134: bath | F134: 0 | G134: 1 | H134: 128
A135: 129 | B135: هیچ کدام | C135: none | F135: 0 | G135: 1 | H135: 129
A136: 130 | B136: خواهر | C136: sister | F136: 0 | G136: 1 | H136: =A136 -> 130
A137: =1+A136 -> 131 | B137: فرهنگ | C137: vocabulary | F137: 0 | G137: 1 | H137: 131
A138: 132 | B138: هر وقت | C138: every time, whenever, always | F138: 0 | G138: 1 | H138: 132
A139: 133 | B139: این شخص | C139: this person | F139: 0 | G139: =IF($A$5>A139,0,IF(A139>$A$6,1,(F139+1)/$H$5+G138)) -> 1 | H139: 133
A140: 134 | B140: بنده | C140: slave | F140: 0 | G140: 1 | H140: 134
A141: 135 | B141: قلم | C141: pen | F141: 0 | G141: 1 | H141: 135
A142: 136 | B142: خط | C142: line, writing | F142: 0 | G142: 1 | H142: 136
A143: 137 | B143: نامه | C143: letter | F143: 0 | G143: 1 | H143: 137
A144: 138 | B144: سفیر | C144: ambassador | F144: 0 | G144: 1 | H144: 138
A145: 139 | B145: سفارت | C145: embassy | F145: 0 | G145: 1 | H145: 139
A146: 140 | B146: وزیر | C146: minister | F146: 0 | G146: 1 | H146: 140
A147: 141 | B147: وزارت داد گستری | C147: Ministry of Justice | F147: 0 | G147: 1 | H147: 141
A148: 142 | B148: کاشی | C148: tile | F148: 0 | G148: 1 | H148: 142
A149: 143 | B149: کاشیکاری | C149: mosaic | F149: 0 | G149: 1 | H149: 143
A150: 144 | B150: مختلف | C150: various | F150: 0 | G150: 1 | H150: 144
A151: 145 | B151: گذشتن | C151: to pass | F151: 0 | G151: 1 | H151: 145
A152: 146 | B152: ایستادن | C152: to stop | F152: 0 | G152: 1 | H152: 146
A153: 147 | B153: کشور | C153: country | F153: 0 | G153: 1 | H153: 147
A154: 148 | B154: گوشه | C154: corner | F154: 0 | G154: 1 | H154: 148
A155: 149 | B155: همچنین | C155: as well | F155: 0 | G155: 1 | H155: 149
A156: 150 | B156: ملکه | C156: queen | F156: 0 | G156: 1 | H156: 150
A157: 151 | B157: دربار | C157: court | F157: 0 | G157: 1 | H157: 151
A158: 152 | B158: عمارت | C158: building | F158: 0 | G158: 1 | H158: 152
A159: 153 | B159: قابل توجه | C159: interesting | F159: 0 | G159: 1 | H159: 153
A160: 154 | B160: قابل | C160: worthy | F160: 0 | G160: 1 | H160: 154
A161: 155 | B161: نقاش | C161: painter | F161: 0 | G161: 1 | H161: 155
A162: 156 | B162: گیلاس | C162: cherry | F162: 0 | G162: 1 | H162: 156
A163: 157 | B163: آموزگار | C163: teacher | D163: Ah… | F163: 0 | G163: 1 | H163: 157
A164: 158 | B164: پایتخت | C164: capital city | F164: 0 | G164: 1 | H164: 158
A165: 159 | B165: ملی | C165: national | F165: 0 | G165: 1 | H165: 159
A166: 160 | B166: چراغ | C166: lamp, light | F166: 0 | G166: 1 | H166: 160
A167: 161 | B167: نقاشی | C167: painting | F167: 0 | G167: 1 | H167: 161
A168: 162 | B168: فرهنگ | C168: education, vocabulary, dictionary | F168: 0 | G168: 1 | H168: 162
A169: 163 | B169: خواندن | C169: to read | F169: 0 | G169: 1 | H169: 163
A170: 164 | B170: کشیدن | C170: to pull | F170: 0 | G170: 1 | H170: 164
A171: 165 | B171: بافتن | C171: to weave | F171: 0 | G171: 1 | H171: 165
A172: 166 | B172: پنجره | C172: window | F172: 0 | G172: 1 | H172: 166
A173: 167 | B173: اطاق | C173: room | F173: 0 | G173: 1 | H173: 167
A174: 168 | B174: گاراژ | C174: garage | F174: 0 | G174: 1 | H174: 168
A175: 169 | B175: نوکر | C175: servant | F175: 0 | G175: 1 | H175: 169
A176: 170 | B176: داخل | C176: inside | F176: 0 | G176: 1 | H176: 170
A177: 171 | B177: بین | C177: between | F177: 0 | G177: 1 | H177: 171
A178: 172 | B178: جلوی | C178: in the presence of | F178: 0 | G178: 1 | H178: 172
A179: 173 | B179: بخاری | C179: stove | F179: 0 | G179: 1 | H179: 173
A180: 174 | B180: ایستادن | C180: to stand | F180: 0 | G180: 1 | H180: 174
A181: 175 | B181: بشقاب | C181: plate | F181: 0 | G181: 1 | H181: 175
A182: 176 | B182: قاشق | C182: spoon | F182: 0 | G182: 1 | H182: 176
A183: 177 | B183: اثاثیه | C183: furniture | F183: 0 | G183: 1 | H183: 177
A184: 178 | B184: واقع است | C184: is located | F184: 0 | G184: 1 | H184: 178
A185: 179 | B185: زمین | C185: floor, ground | F185: 0 | G185: 1 | H185: 179
A186: 180 | B186: درب | C186: street door, front door | F186: 0 | G186: 1 | H186: 180
A187: 181 | B187: قفل | C187: lock | F187: 0 | G187: 1 | H187: 181
A188: 182 | B188: عبارت از | C188: consisting of | F188: 0 | G188: 1 | H188: 182
A189: 183 | B189: ترجمه | C189: translation | F189: 0 | G189: 1 | H189: 183
A190: 184 | B190: آموختن | C190: to learn | F190: 0 | G190: 1 | H190: 184
A191: 185 | B191: می آموزم | C191: I learn | F191: 0 | G191: 1 | H191: 185
A192: 186 | B192: آمیختن | C192: to mix | F192: 0 | G192: 1 | H192: 186
A193: 187 | B193: می آمیزم | C193: I mix | F193: 0 | G193: 1 | H193: 187
A194: 188 | B194: آویختن | C194: to hang | F194: 0 | G194: 1 | H194: 188
A195: 189 | B195: می آویزم | C195: I hang | F195: 0 | G195: 1 | H195: 189
A196: 190 | B196: ساختن | C196: to make | F196: 0 | G196: 1 | H196: 190
A197: 191 | B197: می سازم | C197: I make | F197: 0 | G197: 1 | H197: 191
A198: 192 | B198: سوختن | C198: to burn | F198: 0 | G198: 1 | H198: 192
A199: 193 | B199: می سوزم | C199: I burn | F199: 0 | G199: 1 | H199: 193
A200: 194 | B200: ریختن | C200: to pour | F200: 0 | G200: 1 | H200: =A200 -> 194
A201: =1+A200 -> 195 | B201: می ریزم | C201: I pour | F201: 0 | G201: 1 | H201: 195
A202: 196 | B202: انداختن | C202: to throw | F202: 0 | G202: 1 | H202: 196
A203: 197 | B203: می اندازم | C203: I throw | F203: 0 | G203: =IF($A$5>A203,0,IF(A203>$A$6,1,(F203+1)/$H$5+G202)) -> 1 | H203: 197
... 2836 more rows
